{"text_format":"1","workbook":"xlsx","n_sheets":4,"sheets":["３００名用","２００名用","１００名用","操作説明"],"not_rendered":{"charts":0,"images":1,"macros":1,"external_links":0,"defined_names":8,"comments":0,"pivot_tables":0},"unopened":[],"bounds":{"document_bytes":16777216,"sheet_cells":100000,"rows_first":2000,"rows_last":500,"rows_between":2000,"halvings":0,"cell_chars":16384,"cell_head_chars":4096},"cells_cut":0,"cells_raw":0,"read":"whole","date_system":"1900"}

{"sheet":"３００名用","index":0,"n_rows":304,"n_cols":29,"rows_kept":304,"cut":false,"hidden":false,"merged":[[2,26,2,27],[2,9,2,12],[2,13,2,16],[2,17,2,20],[2,21,2,24],[0,0,0,28],[1,9,1,10],[1,11,1,15],[1,26,1,27],[1,0,1,5],[1,19,1,25]]}
["○○グラウンド・ゴルフ大会成績集計表"]
["○○コース順位表",null,null,null,null,null,null,null,null,"大会日",null,"令和○年○月○日",null,null,null,null,null,null,null,"平均得点",null,null,null,null,null,null,{"$f":"Z3/B3","v":{"$error":"#DIV/0!"}}]
[null,{"$f":"COUNT(B5:B304)","v":0},null,null,null,null,null,null,null,"ＮＯ１",null,null,null,"ＮＯ２",null,null,null,"ＮＯ３",null,null,null,"ＮＯ４",null,null,null,{"$f":"SUM(AB5:AB304)","v":0}," 合　   計"]
["NO","順位","組","番号","チーム名","選手氏名","生年月日","年齢","年齢係数","１打数","２打数","計","点検","１打数","２打数","計","点検","１打数","２打数","計","点検","１打数","２打数","計","点検","１打数","２打数","得点計","順位再計算"]
[1,{"$f":"IF(AB5=\"\",\"\",RANK(AC5,$AC$5:$AC$304,1))","v":""},null,null,null,null,null,{"$f":"IF(G5=\"\",\"\",DATEDIF(G5,TODAY(),\"y\"))","v":""},{"$f":"G5","v":0},null,null,null,{"$f":"IF(L5=\"\",\"\",L5-(24-J5*5-K5))","v":""},null,null,null,{"$f":"IF(P5=\"\",\"\",P5-(24-N5*5-O5))","v":""},null,null,null,{"$f":"IF(T5=\"\",\"\",T5-(24-R5*5-S5))","v":""},null,null,null,{"$f":"IF(X5=\"\",\"\",X5-(24-V5*5-W5))","v":""},{"$f":"IF(F5=\"\",\"\",(SUM(J5,N5,R5,V5)))","v":""},{"$f":"IF(F5=\"\",\"\",(SUM(K5,O5,S5,W5)))","v":""},{"$f":"IF(SUM(L5,P5,T5,X5)=0,\"\",(SUM(L5,P5,T5,X5)))","v":""},{"$f":"IF(AB5=\"\",\"\",(AB5-Z5*0.1-AA5*0.001+I5*0.00000001))","v":""}]
[2,"",null,null,null,null,null,"",0,null,null,null,"",null,null,null,"",null,null,null,"",null,null,null,"","","","",""]
[3,"",null,null,null,null,null,"",0,null,null,null,"",null,null,null,"",null,null,null,"",null,null,null,"","","","",""]
[4,"",null,null,null,null,null,"",0,null,null,null,"",null,null,null,"",null,null,null,"",null,null,null,"","","","",""]
[5,"",null,null,null,null,null,"",0,null,null,null,"",null,null,null,"",null,null,null,"",null,null,null,"","","","",""]
[6,"",null,null,null,null,null,"",0,null,null,null,"",null,null,null,"",null,null,null,"",null,null,null,"","","","",""]
[7,"",null,null,null,null,null,"",0,null,null,null,"",null,null,null,"",null,null,null,"",null,null,null,"","","","",""]
[8,"",null,null,null,null,null,"",0,null,null,null,"",null,null,null,"",null,null,null,"",null,null,null,"","","","",""]
[9,"",null,null,null,null,null,"",0,null,null,null,"",null,null,null,"",null,null,null,"",null,null,null,"","","","",""]
[10,"",null,null,null,null,null,"",0,null,null,null,"",null,null,null,"",null,null,null,"",null,null,null,"","","","",""]
[11,"",null,null,null,null,null,"",0,null,null,null,"",null,null,null,"",null,null,null,"",null,null,null,"",{"$f":"IF(F15=\"\",\"\",(SUM(J15,N15,R15,V15)))","v":""},{"$f":"IF(F15=\"\",\"\",(SUM(K15,O15,S15,W15)))","v":""},{"$f":"IF(SUM(L15,P15,T15,X15)=0,\"\",(SUM(L15,P15,T15,X15)))","v":""},""]
[12,"",null,null,null,null,null,"",0,null,null,null,"",null,null,null,"",null,null,null,"",null,null,null,"","","","",""]
[13,"",null,null,null,null,null,"",0,null,null,null,"",null,null,null,"",null,null,null,"",null,null,null,"","","","",""]
[14,"",null,null,null,null,null,"",0,null,null,null,"",null,null,null,"",null,null,null,"",null,null,null,"","","","",""]
[15,"",null,null,null,null,null,"",0,null,null,null,"",null,null,null,"",null,null,null,"",null,null,null,"","","","",""]
[16,"",null,null,null,null,null,"",0,null,null,null,"",null,null,null,"",null,null,null,"",null,null,null,"","","","",""]
[17,"",null,null,null,null,null,"",0,null,null,null,"",null,null,null,"",null,null,null,"",null,null,null,"","","","",""]
[18,"",null,null,null,null,null,"",0,null,null,null,"",null,null,null,"",null,null,null,"",null,null,null,"","","","",""]
[19,"",null,null,null,null,null,"",0,null,null,null,"",null,null,null,"",null,null,null,"",null,null,null,"","","","",""]
[20,"",null,null,null,null,null,"",0,null,null,null,"",null,null,null,"",null,null,null,"",null,null,null,"","","","",""]
[21,"",null,null,null,null,null,"",0,null,null,null,"",null,null,null,"",null,null,null,"",null,null,null,"","","","",""]
[22,"",null,null,null,null,null,"",0,null,null,null,"",null,null,null,"",null,null,null,"",null,null,null,"","","","",""]
[23,"",null,null,null,null,null,"",0,null,null,null,"",null,null,null,"",null,null,null,"",null,null,null,"","","","",""]
[24,"",null,null,null,null,null,"",0,null,null,null,"",null,null,null,"",null,null,null,"",null,null,null,"","","","",""]
[25,"",null,null,null,null,null,"",0,null,null,null,"",null,null,null,"",null,null,null,"",null,null,null,"","","","",""]
[26,"",null,null,null,null,null,"",0,null,null,null,"",null,null,null,"",null,null,null,"",null,null,null,"","","","",""]
[27,"",null,null,null,null,null,"",0,null,null,null,"",null,null,null,"",null,null,null,"",null,null,null,"","","","",""]
[28,"",null,null,null,null,null,"",0,null,null,null,"",null,null,null,"",null,null,null,"",null,null,null,"","","","",""]
[29,"",null,null,null,null,null,"",0,null,null,null,"",null,null,null,"",null,null,null,"",null,null,null,"","","","",""]
[30,"",null,null,null,null,null,"",0,null,null,null,"",null,null,null,"",null,null,null,"",null,null,null,"","","","",""]
[31,"",null,null,null,null,null,"",0,null,null,null,"",null,null,null,"",null,null,null,"",null,null,null,"","","","",""]
[32,"",null,null,null,null,null,"",0,null,null,null,"",null,null,null,"",null,null,null,"",null,null,null,"","","","",""]
[33,"",null,null,null,null,null,"",0,null,null,null,"",null,null,null,"",null,null,null,"",null,null,null,"","","","",{"$f":"IF(AB37=\"\",\"\",(AB37-Z37*0.1-AA37*0.001+I37*0.00000001))","v":""}]
[34,"",null,null,null,null,null,"",0,null,null,null,"",null,null,null,"",null,null,null,"",null,null,null,"","","","",""]
[35,"",null,null,null,null,null,"",0,null,null,null,"",null,null,null,"",null,null,null,"",null,null,null,"","","","",""]
[36,"",null,null,null,null,null,"",0,null,null,null,"",null,null,null,"",null,null,null,"",null,null,null,"","","","",""]
[37,"",null,null,null,null,null,"",0,null,null,null,"",null,null,null,"",null,null,null,"",null,null,null,"","","","",""]
[38,"",null,null,null,null,null,"",0,null,null,null,"",null,null,null,"",null,null,null,"",null,null,null,"","","","",""]
[39,"",null,null,null,null,null,"",0,null,null,null,"",null,null,null,"",null,null,null,"",null,null,null,"","","","",""]
[40,"",null,null,null,null,null,"",0,null,null,null,"",null,null,null,"",null,null,null,"",null,null,null,"","","","",""]
[41,"",null,null,null,null,null,"",0,null,null,null,"",null,null,null,"",null,null,null,"",null,null,null,"","","","",""]
[42,"",null,null,null,null,null,"",0,null,null,null,"",null,null,null,"",null,null,null,"",null,null,null,"","","","",""]
[43,"",null,null,null,null,null,"",0,null,null,null,"",null,null,null,"",null,null,null,"",null,null,null,"","","","",""]
[44,"",null,null,null,null,null,"",0,null,null,null,"",null,null,null,"",null,null,null,"",null,null,null,"","","","",""]
[45,"",null,null,null,null,null,"",0,null,null,null,"",null,null,null,"",null,null,null,"",null,null,null,"","","","",""]
[46,"",null,null,null,null,null,"",0,null,null,null,"",null,null,null,"",null,null,null,"",null,null,null,"","","","",""]
[47,"",null,null,null,null,null,"",0,null,null,null,"",null,null,null,"",null,null,null,"",null,null,null,"","","","",""]
[48,"",null,null,null,null,null,"",0,null,null,null,"",null,null,null,"",null,null,null,"",null,null,null,"","","","",""]
[49,"",null,null,null,null,null,"",0,null,null,null,"",null,null,null,"",null,null,null,"",null,null,null,"","","","",""]
[50,"",null,null,null,null,null,"",0,null,null,null,"",null,null,null,"",null,null,null,"",null,null,null,"","","","",""]
[51,"",null,null,null,null,null,"",0,null,null,null,"",null,null,null,"",null,null,null,"",null,null,null,"","","","",""]
[52,"",null,null,null,null,null,"",0,null,null,null,"",null,null,null,"",null,null,null,"",null,null,null,"","","","",""]
[53,"",null,null,null,null,null,"",0,null,null,null,"",null,null,null,"",null,null,null,"",null,null,null,"","","","",""]
[54,"",null,null,null,null,null,"",0,null,null,null,"",null,null,null,"",null,null,null,"",null,null,null,"","","","",""]
[55,"",null,null,null,null,null,"",0,null,null,null,"",null,null,null,"",null,null,null,"",null,null,null,"","","","",""]
[56,"",null,null,null,null,null,"",0,null,null,null,"",null,null,null,"",null,null,null,"",null,null,null,"","","","",""]
[57,"",null,null,null,null,null,"",0,null,null,null,"",null,null,null,"",null,null,null,"",null,null,null,"","","","",""]
[58,"",null,null,null,null,null,"",0,null,null,null,"",null,null,null,"",null,null,null,"",null,null,null,"","","","",""]
[59,"",null,null,null,null,null,"",0,null,null,null,"",null,null,null,"",null,null,null,"",null,null,null,"","","","",""]
[60,"",null,null,null,null,null,"",0,null,null,null,"",null,null,null,"",null,null,null,"",null,null,null,"","","","",""]
[61,"",null,null,null,null,null,"",0,null,null,null,"",null,null,null,"",null,null,null,"",null,null,null,"","","","",""]
[62,"",null,null,null,null,null,"",0,null,null,null,"",null,null,null,"",null,null,null,"",null,null,null,"","","","",""]
[63,"",null,null,null,null,null,"",0,null,null,null,"",null,null,null,"",null,null,null,"",null,null,null,"","","","",""]
[64,"",null,null,null,null,null,"",0,null,null,null,"",null,null,null,"",null,null,null,"",null,null,null,"","","","",""]
[65,{"$f":"IF(AB69=\"\",\"\",RANK(AC69,$AC$5:$AC$304,1))","v":""},null,null,null,null,null,{"$f":"IF(G69=\"\",\"\",DATEDIF(G69,TODAY(),\"y\"))","v":""},{"$f":"G69","v":0},null,null,null,{"$f":"IF(L69=\"\",\"\",L69-(24-J69*5-K69))","v":""},null,null,null,{"$f":"IF(P69=\"\",\"\",P69-(24-N69*5-O69))","v":""},null,null,null,{"$f":"IF(T69=\"\",\"\",T69-(24-R69*5-S69))","v":""},null,null,null,{"$f":"IF(X69=\"\",\"\",X69-(24-V69*5-W69))","v":""},"","","",{"$f":"IF(AB69=\"\",\"\",(AB69-Z69*0.1-AA69*0.001+I69*0.00000001))","v":""}]
[66,"",null,null,null,null,null,"",0,null,null,null,"",null,null,null,"",null,null,null,"",null,null,null,"","","","",""]
[67,"",null,null,null,null,null,"",0,null,null,null,"",null,null,null,"",null,null,null,"",null,null,null,"","","","",""]
[68,"",null,null,null,null,null,"",0,null,null,null,"",null,null,null,"",null,null,null,"",null,null,null,"","","","",""]
[69,"",null,null,null,null,null,"",0,null,null,null,"",null,null,null,"",null,null,null,"",null,null,null,"","","","",""]
[70,"",null,null,null,null,null,"",0,null,null,null,"",null,null,null,"",null,null,null,"",null,null,null,"","","","",""]
[71,"",null,null,null,null,null,"",0,null,null,null,"",null,null,null,"",null,null,null,"",null,null,null,"","","","",""]
[72,"",null,null,null,null,null,"",0,null,null,null,"",null,null,null,"",null,null,null,"",null,null,null,"","","","",""]
[73,"",null,null,null,null,null,"",0,null,null,null,"",null,null,null,"",null,null,null,"",null,null,null,"","","","",""]
[74,"",null,null,null,null,null,"",0,null,null,null,"",null,null,null,"",null,null,null,"",null,null,null,"","","","",""]
[75,"",null,null,null,null,null,"",0,null,null,null,"",null,null,null,"",null,null,null,"",null,null,null,"",{"$f":"IF(F79=\"\",\"\",(SUM(J79,N79,R79,V79)))","v":""},{"$f":"IF(F79=\"\",\"\",(SUM(K79,O79,S79,W79)))","v":""},{"$f":"IF(SUM(L79,P79,T79,X79)=0,\"\",(SUM(L79,P79,T79,X79)))","v":""},""]
[76,"",null,null,null,null,null,"",0,null,null,null,"",null,null,null,"",null,null,null,"",null,null,null,"","","","",""]
[77,"",null,null,null,null,null,"",0,null,null,null,"",null,null,null,"",null,null,null,"",null,null,null,"","","","",""]
[78,"",null,null,null,null,null,"",0,null,null,null,"",null,null,null,"",null,null,null,"",null,null,null,"","","","",""]
[79,"",null,null,null,null,null,"",0,null,null,null,"",null,null,null,"",null,null,null,"",null,null,null,"","","","",""]
[80,"",null,null,null,null,null,"",0,null,null,null,"",null,null,null,"",null,null,null,"",null,null,null,"","","","",""]
[81,"",null,null,null,null,null,"",0,null,null,null,"",null,null,null,"",null,null,null,"",null,null,null,"","","","",""]
[82,"",null,null,null,null,null,"",0,null,null,null,"",null,null,null,"",null,null,null,"",null,null,null,"","","","",""]
[83,"",null,null,null,null,null,"",0,null,null,null,"",null,null,null,"",null,null,null,"",null,null,null,"","","","",""]
[84,"",null,null,null,null,null,"",0,null,null,null,"",null,null,null,"",null,null,null,"",null,null,null,"","","","",""]
[85,"",null,null,null,null,null,"",0,null,null,null,"",null,null,null,"",null,null,null,"",null,null,null,"","","","",""]
[86,"",null,null,null,null,null,"",0,null,null,null,"",null,null,null,"",null,null,null,"",null,null,null,"","","","",""]
[87,"",null,null,null,null,null,"",0,null,null,null,"",null,null,null,"",null,null,null,"",null,null,null,"","","","",""]
[88,"",null,null,null,null,null,"",0,null,null,null,"",null,null,null,"",null,null,null,"",null,null,null,"","","","",""]
[89,"",null,null,null,null,null,"",0,null,null,null,"",null,null,null,"",null,null,null,"",null,null,null,"","","","",""]
[90,"",null,null,null,null,null,"",0,null,null,null,"",null,null,null,"",null,null,null,"",null,null,null,"","","","",""]
[91,"",null,null,null,null,null,"",0,null,null,null,"",null,null,null,"",null,null,null,"",null,null,null,"","","","",""]
[92,"",null,null,null,null,null,"",0,null,null,null,"",null,null,null,"",null,null,null,"",null,null,null,"","","","",""]
[93,"",null,null,null,null,null,"",0,null,null,null,"",null,null,null,"",null,null,null,"",null,null,null,"","","","",""]
[94,"",null,null,null,null,null,"",0,null,null,null,"",null,null,null,"",null,null,null,"",null,null,null,"","","","",""]
[95,"",null,null,null,null,null,"",0,null,null,null,"",null,null,null,"",null,null,null,"",null,null,null,"","","","",""]
[96,"",null,null,null,null,null,"",0,null,null,null,"",null,null,null,"",null,null,null,"",null,null,null,"","","","",""]
[97,"",null,null,null,null,null,"",0,null,null,null,"",null,null,null,"",null,null,null,"",null,null,null,"","","","",""]
[98,"",null,null,null,null,null,"",0,null,null,null,"",null,null,null,"",null,null,null,"",null,null,null,"","","","",""]
[99,"",null,null,null,null,null,"",0,null,null,null,"",null,null,null,"",null,null,null,"",null,null,null,"","","","",""]
[100,"",null,null,null,null,null,"",0,null,null,null,"",null,null,null,"",null,null,null,"",null,null,null,"","","","",""]
[101,"",null,null,null,null,null,"",0,null,null,null,"",null,null,null,"",null,null,null,"",null,null,null,"","","","",""]
[102,"",null,null,null,null,null,"",0,null,null,null,"",null,null,null,"",null,null,null,"",null,null,null,"","","","",""]
[103,"",null,null,null,null,null,"",0,null,null,null,"",null,null,null,"",null,null,null,"",null,null,null,"","","","",""]
[104,"",null,null,null,null,null,"",0,null,null,null,"",null,null,null,"",null,null,null,"",null,null,null,"","","","",""]
[105,"",null,null,null,null,null,"",0,null,null,null,"",null,null,null,"",null,null,null,"",null,null,null,"","","","",""]
[106,"",null,null,null,null,null,"",0,null,null,null,"",null,null,null,"",null,null,null,"",null,null,null,"","","","",""]
[107,"",null,null,null,null,null,"",0,null,null,null,"",null,null,null,"",null,null,null,"",null,null,null,"","","","",""]
[108,"",null,null,null,null,null,"",0,null,null,null,"",null,null,null,"",null,null,null,"",null,null,null,"","","","",""]
[109,"",null,null,null,null,null,"",0,null,null,null,"",null,null,null,"",null,null,null,"",null,null,null,"","","","",""]
[110,"",null,null,null,null,null,"",0,null,null,null,"",null,null,null,"",null,null,null,"",null,null,null,"","","","",""]
[111,"",null,null,null,null,null,"",0,null,null,null,"",null,null,null,"",null,null,null,"",null,null,null,"","","","",""]
[112,"",null,null,null,null,null,"",0,null,null,null,"",null,null,null,"",null,null,null,"",null,null,null,"","","","",""]
[113,"",null,null,null,null,null,"",0,null,null,null,"",null,null,null,"",null,null,null,"",null,null,null,"","","","",""]
[114,"",null,null,null,null,null,"",0,null,null,null,"",null,null,null,"",null,null,null,"",null,null,null,"","","","",""]
[115,"",null,null,null,null,null,"",0,null,null,null,"",null,null,null,"",null,null,null,"",null,null,null,"","","","",""]
[116,"",null,null,null,null,null,"",0,null,null,null,"",null,null,null,"",null,null,null,"",null,null,null,"","","","",""]
[117,"",null,null,null,null,null,"",0,null,null,null,"",null,null,null,"",null,null,null,"",null,null,null,"","","","",""]
[118,"",null,null,null,null,null,"",0,null,null,null,"",null,null,null,"",null,null,null,"",null,null,null,"","","","",""]
[119,"",null,null,null,null,null,"",0,null,null,null,"",null,null,null,"",null,null,null,"",null,null,null,"","","","",""]
[120,"",null,null,null,null,null,"",0,null,null,null,"",null,null,null,"",null,null,null,"",null,null,null,"","","","",""]
[121,"",null,null,null,null,null,"",0,null,null,null,"",null,null,null,"",null,null,null,"",null,null,null,"","","","",""]
[122,"",null,null,null,null,null,"",0,null,null,null,"",null,null,null,"",null,null,null,"",null,null,null,"","","","",""]
[123,"",null,null,null,null,null,"",0,null,null,null,"",null,null,null,"",null,null,null,"",null,null,null,"","","","",""]
[124,"",null,null,null,null,null,"",0,null,null,null,"",null,null,null,"",null,null,null,"",null,null,null,"","","","",""]
[125,"",null,null,null,null,null,"",0,null,null,null,"",null,null,null,"",null,null,null,"",null,null,null,"","","","",""]
[126,"",null,null,null,null,null,"",0,null,null,null,"",null,null,null,"",null,null,null,"",null,null,null,"","","","",""]
[127,"",null,null,null,null,null,"",0,null,null,null,"",null,null,null,"",null,null,null,"",null,null,null,"","","","",""]
[128,"",null,null,null,null,null,"",0,null,null,null,"",null,null,null,"",null,null,null,"",null,null,null,"","","","",""]
[129,{"$f":"IF(AB133=\"\",\"\",RANK(AC133,$AC$5:$AC$304,1))","v":""},null,null,null,null,null,{"$f":"IF(G133=\"\",\"\",DATEDIF(G133,TODAY(),\"y\"))","v":""},{"$f":"G133","v":0},null,null,null,{"$f":"IF(L133=\"\",\"\",L133-(24-J133*5-K133))","v":""},null,null,null,{"$f":"IF(P133=\"\",\"\",P133-(24-N133*5-O133))","v":""},null,null,null,{"$f":"IF(T133=\"\",\"\",T133-(24-R133*5-S133))","v":""},null,null,null,{"$f":"IF(X133=\"\",\"\",X133-(24-V133*5-W133))","v":""},"","","",""]
[130,"",null,null,null,null,null,"",0,null,null,null,"",null,null,null,"",null,null,null,"",null,null,null,"","","","",""]
[131,"",null,null,null,null,null,"",0,null,null,null,"",null,null,null,"",null,null,null,"",null,null,null,"","","","",""]
[132,"",null,null,null,null,null,"",0,null,null,null,"",null,null,null,"",null,null,null,"",null,null,null,"","","","",""]
[133,"",null,null,null,null,null,"",0,null,null,null,"",null,null,null,"",null,null,null,"",null,null,null,"","","","",""]
[134,"",null,null,null,null,null,"",0,null,null,null,"",null,null,null,"",null,null,null,"",null,null,null,"","","","",""]
[135,"",null,null,null,null,null,"",0,null,null,null,"",null,null,null,"",null,null,null,"",null,null,null,"","","","",""]
[136,"",null,null,null,null,null,"",0,null,null,null,"",null,null,null,"",null,null,null,"",null,null,null,"","","","",""]
[137,"",null,null,null,null,null,"",0,null,null,null,"",null,null,null,"",null,null,null,"",null,null,null,"","","","",""]
[138,"",null,null,null,null,null,"",0,null,null,null,"",null,null,null,"",null,null,null,"",null,null,null,"","","","",""]
[139,"",null,null,null,null,null,"",0,null,null,null,"",null,null,null,"",null,null,null,"",null,null,null,"",{"$f":"IF(F143=\"\",\"\",(SUM(J143,N143,R143,V143)))","v":""},{"$f":"IF(F143=\"\",\"\",(SUM(K143,O143,S143,W143)))","v":""},{"$f":"IF(SUM(L143,P143,T143,X143)=0,\"\",(SUM(L143,P143,T143,X143)))","v":""},""]
[140,"",null,null,null,null,null,"",0,null,null,null,"",null,null,null,"",null,null,null,"",null,null,null,"","","","",""]
[141,"",null,null,null,null,null,"",0,null,null,null,"",null,null,null,"",null,null,null,"",null,null,null,"","","","",""]
[142,"",null,null,null,null,null,"",0,null,null,null,"",null,null,null,"",null,null,null,"",null,null,null,"","","","",""]
[143,"",null,null,null,null,null,"",0,null,null,null,"",null,null,null,"",null,null,null,"",null,null,null,"","","","",""]
[144,"",null,null,null,null,null,"",0,null,null,null,"",null,null,null,"",null,null,null,"",null,null,null,"","","","",""]
[145,"",null,null,null,null,null,"",0,null,null,null,"",null,null,null,"",null,null,null,"",null,null,null,"","","","",""]
[146,"",null,null,null,null,null,"",0,null,null,null,"",null,null,null,"",null,null,null,"",null,null,null,"","","","",""]
[147,"",null,null,null,null,null,"",0,null,null,null,"",null,null,null,"",null,null,null,"",null,null,null,"","","","",""]
[148,"",null,null,null,null,null,"",0,null,null,null,"",null,null,null,"",null,null,null,"",null,null,null,"","","","",""]
[149,"",null,null,null,null,null,"",0,null,null,null,"",null,null,null,"",null,null,null,"",null,null,null,"","","","",""]
[150,"",null,null,null,null,null,"",0,null,null,null,"",null,null,null,"",null,null,null,"",null,null,null,"","","","",""]
[151,"",null,null,null,null,null,"",0,null,null,null,"",null,null,null,"",null,null,null,"",null,null,null,"","","","",""]
[152,"",null,null,null,null,null,"",0,null,null,null,"",null,null,null,"",null,null,null,"",null,null,null,"","","","",""]
[153,"",null,null,null,null,null,"",0,null,null,null,"",null,null,null,"",null,null,null,"",null,null,null,"","","","",""]
[154,"",null,null,null,null,null,"",0,null,null,null,"",null,null,null,"",null,null,null,"",null,null,null,"","","","",""]
[155,"",null,null,null,null,null,"",0,null,null,null,"",null,null,null,"",null,null,null,"",null,null,null,"","","","",""]
[156,"",null,null,null,null,null,"",0,null,null,null,"",null,null,null,"",null,null,null,"",null,null,null,"","","","",""]
[157,"",null,null,null,null,null,"",0,null,null,null,"",null,null,null,"",null,null,null,"",null,null,null,"","","","",""]
[158,"",null,null,null,null,null,"",0,null,null,null,"",null,null,null,"",null,null,null,"",null,null,null,"","","","",""]
[159,"",null,null,null,null,null,"",0,null,null,null,"",null,null,null,"",null,null,null,"",null,null,null,"","","","",""]
[160,"",null,null,null,null,null,"",0,null,null,null,"",null,null,null,"",null,null,null,"",null,null,null,"","","","",""]
[161,"",null,null,null,null,null,"",0,null,null,null,"",null,null,null,"",null,null,null,"",null,null,null,"","","","",""]
[162,"",null,null,null,null,null,"",0,null,null,null,"",null,null,null,"",null,null,null,"",null,null,null,"","","","",""]
[163,"",null,null,null,null,null,"",0,null,null,null,"",null,null,null,"",null,null,null,"",null,null,null,"","","","",""]
[164,"",null,null,null,null,null,"",0,null,null,null,"",null,null,null,"",null,null,null,"",null,null,null,"","","","",""]
[165,"",null,null,null,null,null,"",0,null,null,null,"",null,null,null,"",null,null,null,"",null,null,null,"","","","",""]
[166,"",null,null,null,null,null,"",0,null,null,null,"",null,null,null,"",null,null,null,"",null,null,null,"","","","",""]
[167,"",null,null,null,null,null,"",0,null,null,null,"",null,null,null,"",null,null,null,"",null,null,null,"","","","",""]
[168,"",null,null,null,null,null,"",0,null,null,null,"",null,null,null,"",null,null,null,"",null,null,null,"","","","",""]
[169,"",null,null,null,null,null,"",0,null,null,null,"",null,null,null,"",null,null,null,"",null,null,null,"","","","",""]
[170,"",null,null,null,null,null,"",0,null,null,null,"",null,null,null,"",null,null,null,"",null,null,null,"","","","",""]
[171,"",null,null,null,null,null,"",0,null,null,null,"",null,null,null,"",null,null,null,"",null,null,null,"","","","",{"$f":"IF(AB175=\"\",\"\",(AB175-Z175*0.1-AA175*0.001+I175*0.00000001))","v":""}]
[172,"",null,null,null,null,null,"",0,null,null,null,"",null,null,null,"",null,null,null,"",null,null,null,"","","","",""]
[173,"",null,null,null,null,null,"",0,null,null,null,"",null,null,null,"",null,null,null,"",null,null,null,"","","","",""]
[174,"",null,null,null,null,null,"",0,null,null,null,"",null,null,null,"",null,null,null,"",null,null,null,"","","","",""]
[175,"",null,null,null,null,null,"",0,null,null,null,"",null,null,null,"",null,null,null,"",null,null,null,"","","","",""]
[176,"",null,null,null,null,null,"",0,null,null,null,"",null,null,null,"",null,null,null,"",null,null,null,"","","","",""]
[177,"",null,null,null,null,null,"",0,null,null,null,"",null,null,null,"",null,null,null,"",null,null,null,"","","","",""]
[178,"",null,null,null,null,null,"",0,null,null,null,"",null,null,null,"",null,null,null,"",null,null,null,"","","","",""]
[179,"",null,null,null,null,null,"",0,null,null,null,"",null,null,null,"",null,null,null,"",null,null,null,"","","","",""]
[180,"",null,null,null,null,null,"",0,null,null,null,"",null,null,null,"",null,null,null,"",null,null,null,"","","","",""]
[181,"",null,null,null,null,null,"",0,null,null,null,"",null,null,null,"",null,null,null,"",null,null,null,"","","","",""]
[182,"",null,null,null,null,null,"",0,null,null,null,"",null,null,null,"",null,null,null,"",null,null,null,"","","","",""]
[183,"",null,null,null,null,null,"",0,null,null,null,"",null,null,null,"",null,null,null,"",null,null,null,"","","","",""]
[184,"",null,null,null,null,null,"",0,null,null,null,"",null,null,null,"",null,null,null,"",null,null,null,"","","","",""]
[185,"",null,null,null,null,null,"",0,null,null,null,"",null,null,null,"",null,null,null,"",null,null,null,"","","","",""]
[186,"",null,null,null,null,null,"",0,null,null,null,"",null,null,null,"",null,null,null,"",null,null,null,"","","","",""]
[187,"",null,null,null,null,null,"",0,null,null,null,"",null,null,null,"",null,null,null,"",null,null,null,"","","","",""]
[188,"",null,null,null,null,null,"",0,null,null,null,"",null,null,null,"",null,null,null,"",null,null,null,"","","","",""]
[189,"",null,null,null,null,null,"",0,null,null,null,"",null,null,null,"",null,null,null,"",null,null,null,"","","","",""]
[190,"",null,null,null,null,null,"",0,null,null,null,"",null,null,null,"",null,null,null,"",null,null,null,"","","","",""]
[191,"",null,null,null,null,null,"",0,null,null,null,"",null,null,null,"",null,null,null,"",null,null,null,"","","","",""]
[192,"",null,null,null,null,null,"",0,null,null,null,"",null,null,null,"",null,null,null,"",null,null,null,"","","","",""]
[193,{"$f":"IF(AB197=\"\",\"\",RANK(AC197,$AC$5:$AC$304,1))","v":""},null,null,null,null,null,{"$f":"IF(G197=\"\",\"\",DATEDIF(G197,TODAY(),\"y\"))","v":""},{"$f":"G197","v":0},null,null,null,{"$f":"IF(L197=\"\",\"\",L197-(24-J197*5-K197))","v":""},null,null,null,{"$f":"IF(P197=\"\",\"\",P197-(24-N197*5-O197))","v":""},null,null,null,{"$f":"IF(T197=\"\",\"\",T197-(24-R197*5-S197))","v":""},null,null,null,{"$f":"IF(X197=\"\",\"\",X197-(24-V197*5-W197))","v":""},"","","",""]
[194,"",null,null,null,null,null,"",0,null,null,null,"",null,null,null,"",null,null,null,"",null,null,null,"","","","",""]
[195,"",null,null,null,null,null,"",0,null,null,null,"",null,null,null,"",null,null,null,"",null,null,null,"","","","",""]
[196,"",null,null,null,null,null,"",0,null,null,null,"",null,null,null,"",null,null,null,"",null,null,null,"","","","",""]
[197,"",null,null,null,null,null,"",0,null,null,null,"",null,null,null,"",null,null,null,"",null,null,null,"","","","",""]
[198,"",null,null,null,null,null,"",0,null,null,null,"",null,null,null,"",null,null,null,"",null,null,null,"","","","",""]
[199,"",null,null,null,null,null,"",0,null,null,null,"",null,null,null,"",null,null,null,"",null,null,null,"","","","",""]
[200,"",null,null,null,null,null,"",0,null,null,null,"",null,null,null,"",null,null,null,"",null,null,null,"","","","",""]
[201,"",null,null,null,null,null,"",0,null,null,null,"",null,null,null,"",null,null,null,"",null,null,null,"","","","",""]
[202,"",null,null,null,null,null,"",0,null,null,null,"",null,null,null,"",null,null,null,"",null,null,null,"","","","",""]
[203,"",null,null,null,null,null,"",0,null,null,null,"",null,null,null,"",null,null,null,"",null,null,null,"",{"$f":"IF(F207=\"\",\"\",(SUM(J207,N207,R207,V207)))","v":""},{"$f":"IF(F207=\"\",\"\",(SUM(K207,O207,S207,W207)))","v":""},{"$f":"IF(SUM(L207,P207,T207,X207)=0,\"\",(SUM(L207,P207,T207,X207)))","v":""},""]
[204,"",null,null,null,null,null,"",0,null,null,null,"",null,null,null,"",null,null,null,"",null,null,null,"","","","",""]
[205,"",null,null,null,null,null,"",0,null,null,null,"",null,null,null,"",null,null,null,"",null,null,null,"","","","",""]
[206,"",null,null,null,null,null,"",0,null,null,null,"",null,null,null,"",null,null,null,"",null,null,null,"","","","",""]
[207,"",null,null,null,null,null,"",0,null,null,null,"",null,null,null,"",null,null,null,"",null,null,null,"","","","",""]
[208,"",null,null,null,null,null,"",0,null,null,null,"",null,null,null,"",null,null,null,"",null,null,null,"","","","",""]
[209,"",null,null,null,null,null,"",0,null,null,null,"",null,null,null,"",null,null,null,"",null,null,null,"","","","",""]
[210,"",null,null,null,null,null,"",0,null,null,null,"",null,null,null,"",null,null,null,"",null,null,null,"","","","",""]
[211,"",null,null,null,null,null,"",0,null,null,null,"",null,null,null,"",null,null,null,"",null,null,null,"","","","",""]
[212,"",null,null,null,null,null,"",0,null,null,null,"",null,null,null,"",null,null,null,"",null,null,null,"","","","",""]
[213,"",null,null,null,null,null,"",0,null,null,null,"",null,null,null,"",null,null,null,"",null,null,null,"","","","",""]
[214,"",null,null,null,null,null,"",0,null,null,null,"",null,null,null,"",null,null,null,"",null,null,null,"","","","",""]
[215,"",null,null,null,null,null,"",0,null,null,null,"",null,null,null,"",null,null,null,"",null,null,null,"","","","",""]
[216,"",null,null,null,null,null,"",0,null,null,null,"",null,null,null,"",null,null,null,"",null,null,null,"","","","",""]
[217,"",null,null,null,null,null,"",0,null,null,null,"",null,null,null,"",null,null,null,"",null,null,null,"","","","",""]
[218,"",null,null,null,null,null,"",0,null,null,null,"",null,null,null,"",null,null,null,"",null,null,null,"","","","",""]
[219,"",null,null,null,null,null,"",0,null,null,null,"",null,null,null,"",null,null,null,"",null,null,null,"","","","",""]
[220,"",null,null,null,null,null,"",0,null,null,null,"",null,null,null,"",null,null,null,"",null,null,null,"","","","",""]
[221,"",null,null,null,null,null,"",0,null,null,null,"",null,null,null,"",null,null,null,"",null,null,null,"","","","",""]
[222,"",null,null,null,null,null,"",0,null,null,null,"",null,null,null,"",null,null,null,"",null,null,null,"","","","",""]
[223,"",null,null,null,null,null,"",0,null,null,null,"",null,null,null,"",null,null,null,"",null,null,null,"","","","",""]
[224,"",null,null,null,null,null,"",0,null,null,null,"",null,null,null,"",null,null,null,"",null,null,null,"","","","",""]
[225,"",null,null,null,null,null,"",0,null,null,null,"",null,null,null,"",null,null,null,"",null,null,null,"","","","",""]
[226,"",null,null,null,null,null,"",0,null,null,null,"",null,null,null,"",null,null,null,"",null,null,null,"","","","",""]
[227,"",null,null,null,null,null,"",0,null,null,null,"",null,null,null,"",null,null,null,"",null,null,null,"","","","",""]
[228,"",null,null,null,null,null,"",0,null,null,null,"",null,null,null,"",null,null,null,"",null,null,null,"","","","",""]
[229,"",null,null,null,null,null,"",0,null,null,null,"",null,null,null,"",null,null,null,"",null,null,null,"","","","",""]
[230,"",null,null,null,null,null,"",0,null,null,null,"",null,null,null,"",null,null,null,"",null,null,null,"","","","",""]
[231,"",null,null,null,null,null,"",0,null,null,null,"",null,null,null,"",null,null,null,"",null,null,null,"","","","",""]
[232,"",null,null,null,null,null,"",0,null,null,null,"",null,null,null,"",null,null,null,"",null,null,null,"","","","",""]
[233,"",null,null,null,null,null,"",0,null,null,null,"",null,null,null,"",null,null,null,"",null,null,null,"","","","",""]
[234,"",null,null,null,null,null,"",0,null,null,null,"",null,null,null,"",null,null,null,"",null,null,null,"","","","",""]
[235,"",null,null,null,null,null,"",0,null,null,null,"",null,null,null,"",null,null,null,"",null,null,null,"","","","",""]
[236,"",null,null,null,null,null,"",0,null,null,null,"",null,null,null,"",null,null,null,"",null,null,null,"","","","",""]
[237,"",null,null,null,null,null,"",0,null,null,null,"",null,null,null,"",null,null,null,"",null,null,null,"","","","",""]
[238,"",null,null,null,null,null,"",0,null,null,null,"",null,null,null,"",null,null,null,"",null,null,null,"","","","",""]
[239,"",null,null,null,null,null,"",0,null,null,null,"",null,null,null,"",null,null,null,"",null,null,null,"","","","",""]
[240,"",null,null,null,null,null,"",0,null,null,null,"",null,null,null,"",null,null,null,"",null,null,null,"","","","",""]
[241,"",null,null,null,null,null,"",0,null,null,null,"",null,null,null,"",null,null,null,"",null,null,null,"","","","",""]
[242,"",null,null,null,null,null,"",0,null,null,null,"",null,null,null,"",null,null,null,"",null,null,null,"","","","",""]
[243,"",null,null,null,null,null,"",0,null,null,null,"",null,null,null,"",null,null,null,"",null,null,null,"","","","",""]
[244,"",null,null,null,null,null,"",0,null,null,null,"",null,null,null,"",null,null,null,"",null,null,null,"","","","",""]
[245,"",null,null,null,null,null,"",0,null,null,null,"",null,null,null,"",null,null,null,"",null,null,null,"","","","",{"$f":"IF(AB249=\"\",\"\",(AB249-Z249*0.1-AA249*0.001+I249*0.00000001))","v":""}]
[246,"",null,null,null,null,null,"",0,null,null,null,"",null,null,null,"",null,null,null,"",null,null,null,"","","","",""]
[247,"",null,null,null,null,null,"",0,null,null,null,"",null,null,null,"",null,null,null,"",null,null,null,"","","","",""]
[248,"",null,null,null,null,null,"",0,null,null,null,"",null,null,null,"",null,null,null,"",null,null,null,"","","","",""]
[249,"",null,null,null,null,null,"",0,null,null,null,"",null,null,null,"",null,null,null,"",null,null,null,"","","","",""]
[250,"",null,null,null,null,null,"",0,null,null,null,"",null,null,null,"",null,null,null,"",null,null,null,"","","","",""]
[251,"",null,null,null,null,null,"",0,null,null,null,"",null,null,null,"",null,null,null,"",null,null,null,"","","","",""]
[252,"",null,null,null,null,null,"",0,null,null,null,"",null,null,null,"",null,null,null,"",null,null,null,"","","","",""]
[253,"",null,null,null,null,null,"",0,null,null,null,"",null,null,null,"",null,null,null,"",null,null,null,"","","","",""]
[254,"",null,null,null,null,null,"",0,null,null,null,"",null,null,null,"",null,null,null,"",null,null,null,"","","","",""]
[255,"",null,null,null,null,null,"",0,null,null,null,"",null,null,null,"",null,null,null,"",null,null,null,"","","","",""]
[256,"",null,null,null,null,null,"",0,null,null,null,"",null,null,null,"",null,null,null,"",null,null,null,"","","","",""]
[257,{"$f":"IF(AB261=\"\",\"\",RANK(AC261,$AC$5:$AC$304,1))","v":""},null,null,null,null,null,{"$f":"IF(G261=\"\",\"\",DATEDIF(G261,TODAY(),\"y\"))","v":""},{"$f":"G261","v":0},null,null,null,{"$f":"IF(L261=\"\",\"\",L261-(24-J261*5-K261))","v":""},null,null,null,{"$f":"IF(P261=\"\",\"\",P261-(24-N261*5-O261))","v":""},null,null,null,{"$f":"IF(T261=\"\",\"\",T261-(24-R261*5-S261))","v":""},null,null,null,{"$f":"IF(X261=\"\",\"\",X261-(24-V261*5-W261))","v":""},"","","",""]
[258,"",null,null,null,null,null,"",0,null,null,null,"",null,null,null,"",null,null,null,"",null,null,null,"","","","",""]
[259,"",null,null,null,null,null,"",0,null,null,null,"",null,null,null,"",null,null,null,"",null,null,null,"","","","",""]
[260,"",null,null,null,null,null,"",0,null,null,null,"",null,null,null,"",null,null,null,"",null,null,null,"","","","",""]
[261,"",null,null,null,null,null,"",0,null,null,null,"",null,null,null,"",null,null,null,"",null,null,null,"","","","",""]
[262,"",null,null,null,null,null,"",0,null,null,null,"",null,null,null,"",null,null,null,"",null,null,null,"","","","",""]
[263,"",null,null,null,null,null,"",0,null,null,null,"",null,null,null,"",null,null,null,"",null,null,null,"","","","",""]
[264,"",null,null,null,null,null,"",0,null,null,null,"",null,null,null,"",null,null,null,"",null,null,null,"","","","",""]
[265,"",null,null,null,null,null,"",0,null,null,null,"",null,null,null,"",null,null,null,"",null,null,null,"","","","",""]
[266,"",null,null,null,null,null,"",0,null,null,null,"",null,null,null,"",null,null,null,"",null,null,null,"","","","",""]
[267,"",null,null,null,null,null,"",0,null,null,null,"",null,null,null,"",null,null,null,"",null,null,null,"",{"$f":"IF(F271=\"\",\"\",(SUM(J271,N271,R271,V271)))","v":""},{"$f":"IF(F271=\"\",\"\",(SUM(K271,O271,S271,W271)))","v":""},{"$f":"IF(SUM(L271,P271,T271,X271)=0,\"\",(SUM(L271,P271,T271,X271)))","v":""},""]
[268,"",null,null,null,null,null,"",0,null,null,null,"",null,null,null,"",null,null,null,"",null,null,null,"","","","",""]
[269,"",null,null,null,null,null,"",0,null,null,null,"",null,null,null,"",null,null,null,"",null,null,null,"","","","",""]
[270,"",null,null,null,null,null,"",0,null,null,null,"",null,null,null,"",null,null,null,"",null,null,null,"","","","",""]
[271,"",null,null,null,null,null,"",0,null,null,null,"",null,null,null,"",null,null,null,"",null,null,null,"","","","",""]
[272,"",null,null,null,null,null,"",0,null,null,null,"",null,null,null,"",null,null,null,"",null,null,null,"","","","",""]
[273,"",null,null,null,null,null,"",0,null,null,null,"",null,null,null,"",null,null,null,"",null,null,null,"","","","",""]
[274,"",null,null,null,null,null,"",0,null,null,null,"",null,null,null,"",null,null,null,"",null,null,null,"","","","",""]
[275,"",null,null,null,null,null,"",0,null,null,null,"",null,null,null,"",null,null,null,"",null,null,null,"","","","",""]
[276,"",null,null,null,null,null,"",0,null,null,null,"",null,null,null,"",null,null,null,"",null,null,null,"","","","",""]
[277,"",null,null,null,null,null,"",0,null,null,null,"",null,null,null,"",null,null,null,"",null,null,null,"","","","",""]
[278,"",null,null,null,null,null,"",0,null,null,null,"",null,null,null,"",null,null,null,"",null,null,null,"","","","",""]
[279,"",null,null,null,null,null,"",0,null,null,null,"",null,null,null,"",null,null,null,"",null,null,null,"","","","",""]
[280,"",null,null,null,null,null,"",0,null,null,null,"",null,null,null,"",null,null,null,"",null,null,null,"","","","",""]
[281,"",null,null,null,null,null,"",0,null,null,null,"",null,null,null,"",null,null,null,"",null,null,null,"","","","",""]
[282,"",null,null,null,null,null,"",0,null,null,null,"",null,null,null,"",null,null,null,"",null,null,null,"","","","",""]
[283,"",null,null,null,null,null,"",0,null,null,null,"",null,null,null,"",null,null,null,"",null,null,null,"","","","",""]
[284,"",null,null,null,null,null,"",0,null,null,null,"",null,null,null,"",null,null,null,"",null,null,null,"","","","",""]
[285,"",null,null,null,null,null,"",0,null,null,null,"",null,null,null,"",null,null,null,"",null,null,null,"","","","",{"$f":"IF(AB289=\"\",\"\",(AB289-Z289*0.1-AA289*0.001+I289*0.00000001))","v":""}]
[286,"",null,null,null,null,null,"",0,null,null,null,"",null,null,null,"",null,null,null,"",null,null,null,"","","","",""]
[287,"",null,null,null,null,null,"",0,null,null,null,"",null,null,null,"",null,null,null,"",null,null,null,"","","","",""]
[288,"",null,null,null,null,null,"",0,null,null,null,"",null,null,null,"",null,null,null,"",null,null,null,"","","","",""]
[289,"",null,null,null,null,null,"",0,null,null,null,"",null,null,null,"",null,null,null,"",null,null,null,"","","","",""]
[290,"",null,null,null,null,null,"",0,null,null,null,"",null,null,null,"",null,null,null,"",null,null,null,"","","","",""]
[291,"",null,null,null,null,null,"",0,null,null,null,"",null,null,null,"",null,null,null,"",null,null,null,"","","","",""]
[292,"",null,null,null,null,null,"",0,null,null,null,"",null,null,null,"",null,null,null,"",null,null,null,"","","","",""]
[293,"",null,null,null,null,null,"",0,null,null,null,"",null,null,null,"",null,null,null,"",null,null,null,"","","","",""]
[294,"",null,null,null,null,null,"",0,null,null,null,"",null,null,null,"",null,null,null,"",null,null,null,"","","","",""]
[295,"",null,null,null,null,null,"",0,null,null,null,"",null,null,null,"",null,null,null,"",null,null,null,"","","","",""]
[296,"",null,null,null,null,null,"",0,null,null,null,"",null,null,null,"",null,null,null,"",null,null,null,"","","","",""]
[297,"",null,null,null,null,null,"",0,null,null,null,"",null,null,null,"",null,null,null,"",null,null,null,"","","","",""]
[298,"",null,null,null,null,null,"",0,null,null,null,"",null,null,null,"",null,null,null,"",null,null,null,"","","","",""]
[299,"",null,null,null,null,null,"",0,null,null,null,"",null,null,null,"",null,null,null,"",null,null,null,"","","","",""]
[300,"",null,null,null,null,null,"",0,null,null,null,"",null,null,null,"",null,null,null,"",null,null,null,"","","","",""]

{"sheet":"２００名用","index":1,"n_rows":204,"n_cols":29,"rows_kept":204,"cut":false,"hidden":false,"merged":[[2,26,2,27],[2,9,2,12],[2,13,2,16],[2,17,2,20],[2,21,2,24],[0,0,0,28],[1,0,1,5],[1,9,1,10],[1,11,1,15],[1,19,1,25],[1,26,1,27]]}
["○○グラウンド・ゴルフ大会成績集計表"]
["○○コース順位表",null,null,null,null,null,null,null,null,"大会日",null,"令和○年○月○日",null,null,null,null,null,null,null,"平均得点",null,null,null,null,null,null,{"$f":"Z3/B3","v":{"$error":"#DIV/0!"}}]
[null,{"$f":"COUNT(B5:B204)","v":0},null,null,null,null,null,null,null,"ＮＯ１",null,null,null,"ＮＯ２",null,null,null,"ＮＯ３",null,null,null,"ＮＯ４",null,null,null,{"$f":"SUM(AB5:AB204)","v":0}," 合　   計"]
["NO","順位","組","番号","チーム名","選手氏名","生年月日","年齢","年齢係数","１打数","２打数","計","点検","１打数","２打数","計","点検","１打数","２打数","計","点検","１打数","２打数","計","点検","１打数","２打数","得点計","順位再計算"]
[1,{"$f":"IF(AB5=\"\",\"\",RANK(AC5,$AC$5:$AC$204,1))","v":""},null,null,null,null,null,{"$f":"IF(G5=\"\",\"\",DATEDIF(G5,TODAY(),\"y\"))","v":""},{"$f":"G5","v":0},null,null,null,{"$f":"IF(L5=\"\",\"\",L5-(24-J5*5-K5))","v":""},null,null,null,{"$f":"IF(P5=\"\",\"\",P5-(24-N5*5-O5))","v":""},null,null,null,{"$f":"IF(T5=\"\",\"\",T5-(24-R5*5-S5))","v":""},null,null,null,{"$f":"IF(X5=\"\",\"\",X5-(24-V5*5-W5))","v":""},{"$f":"IF(F5=\"\",\"\",(SUM(J5,N5,R5,V5)))","v":""},{"$f":"IF(F5=\"\",\"\",(SUM(K5,O5,S5,W5)))","v":""},{"$f":"IF(SUM(L5,P5,T5,X5)=0,\"\",(SUM(L5,P5,T5,X5)))","v":""},{"$f":"IF(AB5=\"\",\"\",(AB5-Z5*0.1-AA5*0.001+I5*0.00000001))","v":""}]
[2,"",null,null,null,null,null,"",0,null,null,null,"",null,null,null,"",null,null,null,"",null,null,null,"","","","",""]
[3,"",null,null,null,null,null,"",0,null,null,null,"",null,null,null,"",null,null,null,"",null,null,null,"","","","",""]
[4,"",null,null,null,null,null,null,null,null,null,null,"",null,null,null,"",null,null,null,"",null,null,null,"","","","",""]
[5,"",null,null,null,null,null,null,null,null,null,null,"",null,null,null,"",null,null,null,"",null,null,null,"","","","",""]
[6,"",null,null,null,null,null,"",0,null,null,null,"",null,null,null,"",null,null,null,"",null,null,null,"","","","",""]
[7,"",null,null,null,null,null,"",0,null,null,null,"",null,null,null,"",null,null,null,"",null,null,null,"","","","",""]
[8,"",null,null,null,null,null,"",0,null,null,null,"",null,null,null,"",null,null,null,"",null,null,null,"","","","",""]
[9,"",null,null,null,null,null,"",0,null,null,null,"",null,null,null,"",null,null,null,"",null,null,null,"","","","",""]
[10,"",null,null,null,null,null,"",0,null,null,null,"",null,null,null,"",null,null,null,"",null,null,null,"","","","",""]
[11,"",null,null,null,null,null,"",0,null,null,null,"",null,null,null,"",null,null,null,"",null,null,null,"",{"$f":"IF(F15=\"\",\"\",(SUM(J15,N15,R15,V15)))","v":""},{"$f":"IF(F15=\"\",\"\",(SUM(K15,O15,S15,W15)))","v":""},{"$f":"IF(SUM(L15,P15,T15,X15)=0,\"\",(SUM(L15,P15,T15,X15)))","v":""},""]
[12,"",null,null,null,null,null,"",0,null,null,null,"",null,null,null,"",null,null,null,"",null,null,null,"","","","",""]
[13,"",null,null,null,null,null,"",0,null,null,null,"",null,null,null,"",null,null,null,"",null,null,null,"","","","",""]
[14,"",null,null,null,null,null,"",0,null,null,null,"",null,null,null,"",null,null,null,"",null,null,null,"","","","",""]
[15,"",null,null,null,null,null,"",0,null,null,null,"",null,null,null,"",null,null,null,"",null,null,null,"","","","",""]
[16,"",null,null,null,null,null,"",0,null,null,null,"",null,null,null,"",null,null,null,"",null,null,null,"","","","",""]
[17,"",null,null,null,null,null,"",0,null,null,null,"",null,null,null,"",null,null,null,"",null,null,null,"","","","",""]
[18,"",null,null,null,null,null,"",0,null,null,null,"",null,null,null,"",null,null,null,"",null,null,null,"","","","",""]
[19,"",null,null,null,null,null,"",0,null,null,null,"",null,null,null,"",null,null,null,"",null,null,null,"","","","",""]
[20,"",null,null,null,null,null,"",0,null,null,null,"",null,null,null,"",null,null,null,"",null,null,null,"","","","",""]
[21,"",null,null,null,null,null,"",0,null,null,null,"",null,null,null,"",null,null,null,"",null,null,null,"","","","",""]
[22,"",null,null,null,null,null,"",0,null,null,null,"",null,null,null,"",null,null,null,"",null,null,null,"","","","",""]
[23,"",null,null,null,null,null,"",0,null,null,null,"",null,null,null,"",null,null,null,"",null,null,null,"","","","",""]
[24,"",null,null,null,null,null,"",0,null,null,null,"",null,null,null,"",null,null,null,"",null,null,null,"","","","",""]
[25,"",null,null,null,null,null,"",0,null,null,null,"",null,null,null,"",null,null,null,"",null,null,null,"","","","",""]
[26,"",null,null,null,null,null,"",0,null,null,null,"",null,null,null,"",null,null,null,"",null,null,null,"","","","",""]
[27,"",null,null,null,null,null,"",0,null,null,null,"",null,null,null,"",null,null,null,"",null,null,null,"","","","",""]
[28,"",null,null,null,null,null,"",0,null,null,null,"",null,null,null,"",null,null,null,"",null,null,null,"","","","",""]
[29,"",null,null,null,null,null,"",0,null,null,null,"",null,null,null,"",null,null,null,"",null,null,null,"","","","",""]
[30,"",null,null,null,null,null,"",0,null,null,null,"",null,null,null,"",null,null,null,"",null,null,null,"","","","",""]
[31,"",null,null,null,null,null,"",0,null,null,null,"",null,null,null,"",null,null,null,"",null,null,null,"","","","",""]
[32,"",null,null,null,null,null,"",0,null,null,null,"",null,null,null,"",null,null,null,"",null,null,null,"","","","",""]
[33,{"$f":"IF(AB37=\"\",\"\",RANK(AC37,$AC$5:$AC$204,1))","v":""},null,null,null,null,null,{"$f":"IF(G37=\"\",\"\",DATEDIF(G37,TODAY(),\"y\"))","v":""},{"$f":"G37","v":0},null,null,null,{"$f":"IF(L37=\"\",\"\",L37-(24-J37*5-K37))","v":""},null,null,null,{"$f":"IF(P37=\"\",\"\",P37-(24-N37*5-O37))","v":""},null,null,null,{"$f":"IF(T37=\"\",\"\",T37-(24-R37*5-S37))","v":""},null,null,null,{"$f":"IF(X37=\"\",\"\",X37-(24-V37*5-W37))","v":""},"","","",""]
[34,"",null,null,null,null,null,"",0,null,null,null,"",null,null,null,"",null,null,null,"",null,null,null,"","","","",""]
[35,"",null,null,null,null,null,"",0,null,null,null,"",null,null,null,"",null,null,null,"",null,null,null,"","","","",""]
[36,"",null,null,null,null,null,"",0,null,null,null,"",null,null,null,"",null,null,null,"",null,null,null,"","","","",""]
[37,"",null,null,null,null,null,"",0,null,null,null,"",null,null,null,"",null,null,null,"",null,null,null,"","","","",""]
[38,"",null,null,null,null,null,"",0,null,null,null,"",null,null,null,"",null,null,null,"",null,null,null,"","","","",""]
[39,"",null,null,null,null,null,"",0,null,null,null,"",null,null,null,"",null,null,null,"",null,null,null,"","","","",""]
[40,"",null,null,null,null,null,"",0,null,null,null,"",null,null,null,"",null,null,null,"",null,null,null,"","","","",""]
[41,"",null,null,null,null,null,"",0,null,null,null,"",null,null,null,"",null,null,null,"",null,null,null,"","","","",""]
[42,"",null,null,null,null,null,"",0,null,null,null,"",null,null,null,"",null,null,null,"",null,null,null,"","","","",""]
[43,"",null,null,null,null,null,"",0,null,null,null,"",null,null,null,"",null,null,null,"",null,null,null,"","","","",""]
[44,"",null,null,null,null,null,"",0,null,null,null,"",null,null,null,"",null,null,null,"",null,null,null,"","","","",""]
[45,"",null,null,null,null,null,"",0,null,null,null,"",null,null,null,"",null,null,null,"",null,null,null,"","","","",""]
[46,"",null,null,null,null,null,"",0,null,null,null,"",null,null,null,"",null,null,null,"",null,null,null,"","","","",""]
[47,"",null,null,null,null,null,"",0,null,null,null,"",null,null,null,"",null,null,null,"",null,null,null,"","","","",""]
[48,"",null,null,null,null,null,"",0,null,null,null,"",null,null,null,"",null,null,null,"",null,null,null,"","","","",""]
[49,"",null,null,null,null,null,"",0,null,null,null,"",null,null,null,"",null,null,null,"",null,null,null,"","","","",""]
[50,"",null,null,null,null,null,"",0,null,null,null,"",null,null,null,"",null,null,null,"",null,null,null,"","","","",""]
[51,"",null,null,null,null,null,"",0,null,null,null,"",null,null,null,"",null,null,null,"",null,null,null,"","","","",""]
[52,"",null,null,null,null,null,"",0,null,null,null,"",null,null,null,"",null,null,null,"",null,null,null,"","","","",""]
[53,"",null,null,null,null,null,"",0,null,null,null,"",null,null,null,"",null,null,null,"",null,null,null,"","","","",""]
[54,"",null,null,null,null,null,"",0,null,null,null,"",null,null,null,"",null,null,null,"",null,null,null,"","","","",""]
[55,"",null,null,null,null,null,"",0,null,null,null,"",null,null,null,"",null,null,null,"",null,null,null,"","","","",""]
[56,"",null,null,null,null,null,"",0,null,null,null,"",null,null,null,"",null,null,null,"",null,null,null,"","","","",""]
[57,"",null,null,null,null,null,"",0,null,null,null,"",null,null,null,"",null,null,null,"",null,null,null,"","","","",""]
[58,"",null,null,null,null,null,"",0,null,null,null,"",null,null,null,"",null,null,null,"",null,null,null,"","","","",""]
[59,"",null,null,null,null,null,"",0,null,null,null,"",null,null,null,"",null,null,null,"",null,null,null,"","","","",""]
[60,"",null,null,null,null,null,"",0,null,null,null,"",null,null,null,"",null,null,null,"",null,null,null,"","","","",""]
[61,"",null,null,null,null,null,"",0,null,null,null,"",null,null,null,"",null,null,null,"",null,null,null,"","","","",""]
[62,"",null,null,null,null,null,"",0,null,null,null,"",null,null,null,"",null,null,null,"",null,null,null,"","","","",""]
[63,"",null,null,null,null,null,"",0,null,null,null,"",null,null,null,"",null,null,null,"",null,null,null,"","","","",""]
[64,"",null,null,null,null,null,"",0,null,null,null,"",null,null,null,"",null,null,null,"",null,null,null,"","","","",""]
[65,{"$f":"IF(AB69=\"\",\"\",RANK(AC69,$AC$5:$AC$204,1))","v":""},null,null,null,null,null,{"$f":"IF(G69=\"\",\"\",DATEDIF(G69,TODAY(),\"y\"))","v":""},{"$f":"G69","v":0},null,null,null,{"$f":"IF(L69=\"\",\"\",L69-(24-J69*5-K69))","v":""},null,null,null,{"$f":"IF(P69=\"\",\"\",P69-(24-N69*5-O69))","v":""},null,null,null,{"$f":"IF(T69=\"\",\"\",T69-(24-R69*5-S69))","v":""},null,null,null,{"$f":"IF(X69=\"\",\"\",X69-(24-V69*5-W69))","v":""},"","","",{"$f":"IF(AB69=\"\",\"\",(AB69-Z69*0.1-AA69*0.001+I69*0.00000001))","v":""}]
[66,"",null,null,null,null,null,"",0,null,null,null,"",null,null,null,"",null,null,null,"",null,null,null,"","","","",""]
[67,"",null,null,null,null,null,"",0,null,null,null,"",null,null,null,"",null,null,null,"",null,null,null,"","","","",""]
[68,"",null,null,null,null,null,"",0,null,null,null,"",null,null,null,"",null,null,null,"",null,null,null,"","","","",""]
[69,"",null,null,null,null,null,"",0,null,null,null,"",null,null,null,"",null,null,null,"",null,null,null,"","","","",""]
[70,"",null,null,null,null,null,"",0,null,null,null,"",null,null,null,"",null,null,null,"",null,null,null,"","","","",""]
[71,"",null,null,null,null,null,"",0,null,null,null,"",null,null,null,"",null,null,null,"",null,null,null,"","","","",""]
[72,"",null,null,null,null,null,"",0,null,null,null,"",null,null,null,"",null,null,null,"",null,null,null,"","","","",""]
[73,"",null,null,null,null,null,"",0,null,null,null,"",null,null,null,"",null,null,null,"",null,null,null,"","","","",""]
[74,"",null,null,null,null,null,"",0,null,null,null,"",null,null,null,"",null,null,null,"",null,null,null,"","","","",""]
[75,"",null,null,null,null,null,"",0,null,null,null,"",null,null,null,"",null,null,null,"",null,null,null,"",{"$f":"IF(F79=\"\",\"\",(SUM(J79,N79,R79,V79)))","v":""},{"$f":"IF(F79=\"\",\"\",(SUM(K79,O79,S79,W79)))","v":""},{"$f":"IF(SUM(L79,P79,T79,X79)=0,\"\",(SUM(L79,P79,T79,X79)))","v":""},""]
[76,"",null,null,null,null,null,"",0,null,null,null,"",null,null,null,"",null,null,null,"",null,null,null,"","","","",""]
[77,"",null,null,null,null,null,"",0,null,null,null,"",null,null,null,"",null,null,null,"",null,null,null,"","","","",""]
[78,"",null,null,null,null,null,"",0,null,null,null,"",null,null,null,"",null,null,null,"",null,null,null,"","","","",""]
[79,"",null,null,null,null,null,"",0,null,null,null,"",null,null,null,"",null,null,null,"",null,null,null,"","","","",""]
[80,"",null,null,null,null,null,"",0,null,null,null,"",null,null,null,"",null,null,null,"",null,null,null,"","","","",""]
[81,"",null,null,null,null,null,"",0,null,null,null,"",null,null,null,"",null,null,null,"",null,null,null,"","","","",""]
[82,"",null,null,null,null,null,"",0,null,null,null,"",null,null,null,"",null,null,null,"",null,null,null,"","","","",""]
[83,"",null,null,null,null,null,"",0,null,null,null,"",null,null,null,"",null,null,null,"",null,null,null,"","","","",""]
[84,"",null,null,null,null,null,"",0,null,null,null,"",null,null,null,"",null,null,null,"",null,null,null,"","","","",""]
[85,"",null,null,null,null,null,"",0,null,null,null,"",null,null,null,"",null,null,null,"",null,null,null,"","","","",""]
[86,"",null,null,null,null,null,"",0,null,null,null,"",null,null,null,"",null,null,null,"",null,null,null,"","","","",""]
[87,"",null,null,null,null,null,"",0,null,null,null,"",null,null,null,"",null,null,null,"",null,null,null,"","","","",""]
[88,"",null,null,null,null,null,"",0,null,null,null,"",null,null,null,"",null,null,null,"",null,null,null,"","","","",""]
[89,"",null,null,null,null,null,"",0,null,null,null,"",null,null,null,"",null,null,null,"",null,null,null,"","","","",""]
[90,"",null,null,null,null,null,"",0,null,null,null,"",null,null,null,"",null,null,null,"",null,null,null,"","","","",""]
[91,"",null,null,null,null,null,"",0,null,null,null,"",null,null,null,"",null,null,null,"",null,null,null,"","","","",""]
[92,"",null,null,null,null,null,"",0,null,null,null,"",null,null,null,"",null,null,null,"",null,null,null,"","","","",""]
[93,"",null,null,null,null,null,"",0,null,null,null,"",null,null,null,"",null,null,null,"",null,null,null,"","","","",""]
[94,"",null,null,null,null,null,"",0,null,null,null,"",null,null,null,"",null,null,null,"",null,null,null,"","","","",""]
[95,"",null,null,null,null,null,"",0,null,null,null,"",null,null,null,"",null,null,null,"",null,null,null,"","","","",""]
[96,"",null,null,null,null,null,"",0,null,null,null,"",null,null,null,"",null,null,null,"",null,null,null,"","","","",""]
[97,{"$f":"IF(AB101=\"\",\"\",RANK(AC101,$AC$5:$AC$204,1))","v":""},null,null,null,null,null,{"$f":"IF(G101=\"\",\"\",DATEDIF(G101,TODAY(),\"y\"))","v":""},{"$f":"G101","v":0},null,null,null,{"$f":"IF(L101=\"\",\"\",L101-(24-J101*5-K101))","v":""},null,null,null,{"$f":"IF(P101=\"\",\"\",P101-(24-N101*5-O101))","v":""},null,null,null,{"$f":"IF(T101=\"\",\"\",T101-(24-R101*5-S101))","v":""},null,null,null,{"$f":"IF(X101=\"\",\"\",X101-(24-V101*5-W101))","v":""},"","","",""]
[98,"",null,null,null,null,null,"",0,null,null,null,"",null,null,null,"",null,null,null,"",null,null,null,"","","","",""]
[99,"",null,null,null,null,null,"",0,null,null,null,"",null,null,null,"",null,null,null,"",null,null,null,"","","","",""]
[100,"",null,null,null,null,null,"",0,null,null,null,"",null,null,null,"",null,null,null,"",null,null,null,"","","","",""]
[101,"",null,null,null,null,null,"",0,null,null,null,"",null,null,null,"",null,null,null,"",null,null,null,"","","","",""]
[102,"",null,null,null,null,null,"",0,null,null,null,"",null,null,null,"",null,null,null,"",null,null,null,"","","","",""]
[103,"",null,null,null,null,null,"",0,null,null,null,"",null,null,null,"",null,null,null,"",null,null,null,"","","","",""]
[104,"",null,null,null,null,null,"",0,null,null,null,"",null,null,null,"",null,null,null,"",null,null,null,"","","","",""]
[105,"",null,null,null,null,null,"",0,null,null,null,"",null,null,null,"",null,null,null,"",null,null,null,"","","","",""]
[106,"",null,null,null,null,null,"",0,null,null,null,"",null,null,null,"",null,null,null,"",null,null,null,"","","","",""]
[107,"",null,null,null,null,null,"",0,null,null,null,"",null,null,null,"",null,null,null,"",null,null,null,"","","","",""]
[108,"",null,null,null,null,null,"",0,null,null,null,"",null,null,null,"",null,null,null,"",null,null,null,"","","","",""]
[109,"",null,null,null,null,null,"",0,null,null,null,"",null,null,null,"",null,null,null,"",null,null,null,"","","","",""]
[110,"",null,null,null,null,null,"",0,null,null,null,"",null,null,null,"",null,null,null,"",null,null,null,"","","","",""]
[111,"",null,null,null,null,null,"",0,null,null,null,"",null,null,null,"",null,null,null,"",null,null,null,"","","","",""]
[112,"",null,null,null,null,null,"",0,null,null,null,"",null,null,null,"",null,null,null,"",null,null,null,"","","","",""]
[113,"",null,null,null,null,null,"",0,null,null,null,"",null,null,null,"",null,null,null,"",null,null,null,"","","","",""]
[114,"",null,null,null,null,null,"",0,null,null,null,"",null,null,null,"",null,null,null,"",null,null,null,"","","","",""]
[115,"",null,null,null,null,null,"",0,null,null,null,"",null,null,null,"",null,null,null,"",null,null,null,"","","","",""]
[116,"",null,null,null,null,null,"",0,null,null,null,"",null,null,null,"",null,null,null,"",null,null,null,"","","","",""]
[117,"",null,null,null,null,null,"",0,null,null,null,"",null,null,null,"",null,null,null,"",null,null,null,"","","","",""]
[118,"",null,null,null,null,null,"",0,null,null,null,"",null,null,null,"",null,null,null,"",null,null,null,"","","","",""]
[119,"",null,null,null,null,null,"",0,null,null,null,"",null,null,null,"",null,null,null,"",null,null,null,"","","","",""]
[120,"",null,null,null,null,null,"",0,null,null,null,"",null,null,null,"",null,null,null,"",null,null,null,"","","","",""]
[121,"",null,null,null,null,null,"",0,null,null,null,"",null,null,null,"",null,null,null,"",null,null,null,"","","","",""]
[122,"",null,null,null,null,null,"",0,null,null,null,"",null,null,null,"",null,null,null,"",null,null,null,"","","","",""]
[123,"",null,null,null,null,null,"",0,null,null,null,"",null,null,null,"",null,null,null,"",null,null,null,"","","","",""]
[124,"",null,null,null,null,null,"",0,null,null,null,"",null,null,null,"",null,null,null,"",null,null,null,"","","","",""]
[125,"",null,null,null,null,null,"",0,null,null,null,"",null,null,null,"",null,null,null,"",null,null,null,"","","","",""]
[126,"",null,null,null,null,null,"",0,null,null,null,"",null,null,null,"",null,null,null,"",null,null,null,"","","","",""]
[127,"",null,null,null,null,null,"",0,null,null,null,"",null,null,null,"",null,null,null,"",null,null,null,"","","","",""]
[128,"",null,null,null,null,null,"",0,null,null,null,"",null,null,null,"",null,null,null,"",null,null,null,"","","","",""]
[129,{"$f":"IF(AB133=\"\",\"\",RANK(AC133,$AC$5:$AC$204,1))","v":""},null,null,null,null,null,{"$f":"IF(G133=\"\",\"\",DATEDIF(G133,TODAY(),\"y\"))","v":""},{"$f":"G133","v":0},null,null,null,{"$f":"IF(L133=\"\",\"\",L133-(24-J133*5-K133))","v":""},null,null,null,{"$f":"IF(P133=\"\",\"\",P133-(24-N133*5-O133))","v":""},null,null,null,{"$f":"IF(T133=\"\",\"\",T133-(24-R133*5-S133))","v":""},null,null,null,{"$f":"IF(X133=\"\",\"\",X133-(24-V133*5-W133))","v":""},"","","",""]
[130,"",null,null,null,null,null,"",0,null,null,null,"",null,null,null,"",null,null,null,"",null,null,null,"","","","",""]
[131,"",null,null,null,null,null,"",0,null,null,null,"",null,null,null,"",null,null,null,"",null,null,null,"","","","",""]
[132,"",null,null,null,null,null,"",0,null,null,null,"",null,null,null,"",null,null,null,"",null,null,null,"","","","",""]
[133,"",null,null,null,null,null,"",0,null,null,null,"",null,null,null,"",null,null,null,"",null,null,null,"","","","",""]
[134,"",null,null,null,null,null,"",0,null,null,null,"",null,null,null,"",null,null,null,"",null,null,null,"","","","",""]
[135,"",null,null,null,null,null,"",0,null,null,null,"",null,null,null,"",null,null,null,"",null,null,null,"","","","",""]
[136,"",null,null,null,null,null,"",0,null,null,null,"",null,null,null,"",null,null,null,"",null,null,null,"","","","",""]
[137,"",null,null,null,null,null,"",0,null,null,null,"",null,null,null,"",null,null,null,"",null,null,null,"","","","",""]
[138,"",null,null,null,null,null,"",0,null,null,null,"",null,null,null,"",null,null,null,"",null,null,null,"","","","",""]
[139,"",null,null,null,null,null,"",0,null,null,null,"",null,null,null,"",null,null,null,"",null,null,null,"",{"$f":"IF(F143=\"\",\"\",(SUM(J143,N143,R143,V143)))","v":""},{"$f":"IF(F143=\"\",\"\",(SUM(K143,O143,S143,W143)))","v":""},{"$f":"IF(SUM(L143,P143,T143,X143)=0,\"\",(SUM(L143,P143,T143,X143)))","v":""},""]
[140,"",null,null,null,null,null,"",0,null,null,null,"",null,null,null,"",null,null,null,"",null,null,null,"","","","",""]
[141,"",null,null,null,null,null,"",0,null,null,null,"",null,null,null,"",null,null,null,"",null,null,null,"","","","",""]
[142,"",null,null,null,null,null,"",0,null,null,null,"",null,null,null,"",null,null,null,"",null,null,null,"","","","",""]
[143,"",null,null,null,null,null,"",0,null,null,null,"",null,null,null,"",null,null,null,"",null,null,null,"","","","",""]
[144,"",null,null,null,null,null,"",0,null,null,null,"",null,null,null,"",null,null,null,"",null,null,null,"","","","",""]
[145,"",null,null,null,null,null,"",0,null,null,null,"",null,null,null,"",null,null,null,"",null,null,null,"","","","",""]
[146,"",null,null,null,null,null,"",0,null,null,null,"",null,null,null,"",null,null,null,"",null,null,null,"","","","",""]
[147,"",null,null,null,null,null,"",0,null,null,null,"",null,null,null,"",null,null,null,"",null,null,null,"","","","",""]
[148,"",null,null,null,null,null,"",0,null,null,null,"",null,null,null,"",null,null,null,"",null,null,null,"","","","",""]
[149,"",null,null,null,null,null,"",0,null,null,null,"",null,null,null,"",null,null,null,"",null,null,null,"","","","",""]
[150,"",null,null,null,null,null,"",0,null,null,null,"",null,null,null,"",null,null,null,"",null,null,null,"","","","",""]
[151,"",null,null,null,null,null,"",0,null,null,null,"",null,null,null,"",null,null,null,"",null,null,null,"","","","",""]
[152,"",null,null,null,null,null,"",0,null,null,null,"",null,null,null,"",null,null,null,"",null,null,null,"","","","",""]
[153,"",null,null,null,null,null,"",0,null,null,null,"",null,null,null,"",null,null,null,"",null,null,null,"","","","",""]
[154,"",null,null,null,null,null,"",0,null,null,null,"",null,null,null,"",null,null,null,"",null,null,null,"","","","",""]
[155,"",null,null,null,null,null,"",0,null,null,null,"",null,null,null,"",null,null,null,"",null,null,null,"","","","",""]
[156,"",null,null,null,null,null,"",0,null,null,null,"",null,null,null,"",null,null,null,"",null,null,null,"","","","",""]
[157,"",null,null,null,null,null,"",0,null,null,null,"",null,null,null,"",null,null,null,"",null,null,null,"","","","",""]
[158,"",null,null,null,null,null,"",0,null,null,null,"",null,null,null,"",null,null,null,"",null,null,null,"","","","",""]
[159,"",null,null,null,null,null,"",0,null,null,null,"",null,null,null,"",null,null,null,"",null,null,null,"","","","",""]
[160,"",null,null,null,null,null,"",0,null,null,null,"",null,null,null,"",null,null,null,"",null,null,null,"","","","",""]
[161,{"$f":"IF(AB165=\"\",\"\",RANK(AC165,$AC$5:$AC$204,1))","v":""},null,null,null,null,null,{"$f":"IF(G165=\"\",\"\",DATEDIF(G165,TODAY(),\"y\"))","v":""},{"$f":"G165","v":0},null,null,null,{"$f":"IF(L165=\"\",\"\",L165-(24-J165*5-K165))","v":""},null,null,null,{"$f":"IF(P165=\"\",\"\",P165-(24-N165*5-O165))","v":""},null,null,null,{"$f":"IF(T165=\"\",\"\",T165-(24-R165*5-S165))","v":""},null,null,null,{"$f":"IF(X165=\"\",\"\",X165-(24-V165*5-W165))","v":""},"","","",""]
[162,"",null,null,null,null,null,"",0,null,null,null,"",null,null,null,"",null,null,null,"",null,null,null,"","","","",""]
[163,"",null,null,null,null,null,"",0,null,null,null,"",null,null,null,"",null,null,null,"",null,null,null,"","","","",""]
[164,"",null,null,null,null,null,"",0,null,null,null,"",null,null,null,"",null,null,null,"",null,null,null,"","","","",""]
[165,"",null,null,null,null,null,"",0,null,null,null,"",null,null,null,"",null,null,null,"",null,null,null,"","","","",""]
[166,"",null,null,null,null,null,"",0,null,null,null,"",null,null,null,"",null,null,null,"",null,null,null,"","","","",""]
[167,"",null,null,null,null,null,"",0,null,null,null,"",null,null,null,"",null,null,null,"",null,null,null,"","","","",""]
[168,"",null,null,null,null,null,"",0,null,null,null,"",null,null,null,"",null,null,null,"",null,null,null,"","","","",""]
[169,"",null,null,null,null,null,"",0,null,null,null,"",null,null,null,"",null,null,null,"",null,null,null,"","","","",""]
[170,"",null,null,null,null,null,"",0,null,null,null,"",null,null,null,"",null,null,null,"",null,null,null,"","","","",""]
[171,"",null,null,null,null,null,"",0,null,null,null,"",null,null,null,"",null,null,null,"",null,null,null,"","","","",""]
[172,"",null,null,null,null,null,"",0,null,null,null,"",null,null,null,"",null,null,null,"",null,null,null,"","","","",""]
[173,"",null,null,null,null,null,"",0,null,null,null,"",null,null,null,"",null,null,null,"",null,null,null,"","","","",""]
[174,"",null,null,null,null,null,"",0,null,null,null,"",null,null,null,"",null,null,null,"",null,null,null,"","","","",""]
[175,"",null,null,null,null,null,"",0,null,null,null,"",null,null,null,"",null,null,null,"",null,null,null,"","","","",""]
[176,"",null,null,null,null,null,"",0,null,null,null,"",null,null,null,"",null,null,null,"",null,null,null,"","","","",""]
[177,"",null,null,null,null,null,"",0,null,null,null,"",null,null,null,"",null,null,null,"",null,null,null,"","","","",""]
[178,"",null,null,null,null,null,"",0,null,null,null,"",null,null,null,"",null,null,null,"",null,null,null,"","","","",""]
[179,"",null,null,null,null,null,"",0,null,null,null,"",null,null,null,"",null,null,null,"",null,null,null,"","","","",""]
[180,"",null,null,null,null,null,"",0,null,null,null,"",null,null,null,"",null,null,null,"",null,null,null,"","","","",""]
[181,"",null,null,null,null,null,"",0,null,null,null,"",null,null,null,"",null,null,null,"",null,null,null,"","","","",""]
[182,"",null,null,null,null,null,"",0,null,null,null,"",null,null,null,"",null,null,null,"",null,null,null,"","","","",""]
[183,"",null,null,null,null,null,"",0,null,null,null,"",null,null,null,"",null,null,null,"",null,null,null,"","","","",""]
[184,"",null,null,null,null,null,"",0,null,null,null,"",null,null,null,"",null,null,null,"",null,null,null,"","","","",""]
[185,"",null,null,null,null,null,"",0,null,null,null,"",null,null,null,"",null,null,null,"",null,null,null,"","","","",""]
[186,"",null,null,null,null,null,"",0,null,null,null,"",null,null,null,"",null,null,null,"",null,null,null,"","","","",""]
[187,"",null,null,null,null,null,"",0,null,null,null,"",null,null,null,"",null,null,null,"",null,null,null,"","","","",""]
[188,"",null,null,null,null,null,"",0,null,null,null,"",null,null,null,"",null,null,null,"",null,null,null,"","","","",""]
[189,"",null,null,null,null,null,"",0,null,null,null,"",null,null,null,"",null,null,null,"",null,null,null,"","","","",""]
[190,"",null,null,null,null,null,"",0,null,null,null,"",null,null,null,"",null,null,null,"",null,null,null,"","","","",""]
[191,"",null,null,null,null,null,"",0,null,null,null,"",null,null,null,"",null,null,null,"",null,null,null,"","","","",""]
[192,"",null,null,null,null,null,"",0,null,null,null,"",null,null,null,"",null,null,null,"",null,null,null,"","","","",""]
[193,{"$f":"IF(AB197=\"\",\"\",RANK(AC197,$AC$5:$AC$204,1))","v":""},null,null,null,null,null,{"$f":"IF(G197=\"\",\"\",DATEDIF(G197,TODAY(),\"y\"))","v":""},{"$f":"G197","v":0},null,null,null,{"$f":"IF(L197=\"\",\"\",L197-(24-J197*5-K197))","v":""},null,null,null,{"$f":"IF(P197=\"\",\"\",P197-(24-N197*5-O197))","v":""},null,null,null,{"$f":"IF(T197=\"\",\"\",T197-(24-R197*5-S197))","v":""},null,null,null,{"$f":"IF(X197=\"\",\"\",X197-(24-V197*5-W197))","v":""},"","","",""]
[194,"",null,null,null,null,null,"",0,null,null,null,"",null,null,null,"",null,null,null,"",null,null,null,"","","","",""]
[195,"",null,null,null,null,null,"",0,null,null,null,"",null,null,null,"",null,null,null,"",null,null,null,"","","","",""]
[196,"",null,null,null,null,null,"",0,null,null,null,"",null,null,null,"",null,null,null,"",null,null,null,"","","","",""]
[197,"",null,null,null,null,null,"",0,null,null,null,"",null,null,null,"",null,null,null,"",null,null,null,"","","","",""]
[198,"",null,null,null,null,null,"",0,null,null,null,"",null,null,null,"",null,null,null,"",null,null,null,"","","","",""]
[199,"",null,null,null,null,null,"",0,null,null,null,"",null,null,null,"",null,null,null,"",null,null,null,"","","","",""]
[200,"",null,null,null,null,null,"",0,null,null,null,"",null,null,null,"",null,null,null,"",null,null,null,"","","","",""]

{"sheet":"１００名用","index":2,"n_rows":104,"n_cols":29,"rows_kept":104,"cut":false,"hidden":false,"merged":[[2,26,2,27],[2,9,2,12],[2,13,2,16],[2,17,2,20],[2,21,2,24],[0,0,0,28],[1,0,1,5],[1,9,1,10],[1,11,1,15],[1,19,1,25],[1,26,1,27]]}
["○○グラウンド・ゴルフ大会成績集計表"]
["○○コース順位表",null,null,null,null,null,null,null,null,"大会日",null,"令和○年○月○日",null,null,null,null,null,null,null,"平均得点",null,null,null,null,null,null,{"$f":"Z3/B3","v":{"$error":"#DIV/0!"}}]
[null,{"$f":"COUNT(B5:B104)","v":0},null,null,null,null,null,null,null,"ＮＯ１",null,null,null,"ＮＯ２",null,null,null,"ＮＯ３",null,null,null,"ＮＯ４",null,null,null,{"$f":"SUM(AB5:AB104)","v":0}," 合　   計"]
["NO","順位","組","番号","チーム名","選手氏名","生年月日","年齢","年齢係数","１打数","２打数","計","点検","１打数","２打数","計","点検","１打数","２打数","計","点検","１打数","２打数","計","点検","１打数","２打数","得点計","順位再計算"]
[1,{"$f":"IF(AB5=\"\",\"\",RANK(AC5,$AC$5:$AC$104,1))","v":""},null,null,null,null,null,{"$f":"IF(G5=\"\",\"\",DATEDIF(G5,TODAY(),\"y\"))","v":""},{"$f":"G5","v":0},null,null,null,{"$f":"IF(L5=\"\",\"\",L5-(24-J5*5-K5))","v":""},null,null,null,{"$f":"IF(P5=\"\",\"\",P5-(24-N5*5-O5))","v":""},null,null,null,{"$f":"IF(T5=\"\",\"\",T5-(24-R5*5-S5))","v":""},null,null,null,{"$f":"IF(X5=\"\",\"\",X5-(24-V5*5-W5))","v":""},{"$f":"IF(F5=\"\",\"\",(SUM(J5,N5,R5,V5)))","v":""},{"$f":"IF(F5=\"\",\"\",(SUM(K5,O5,S5,W5)))","v":""},{"$f":"IF(SUM(L5,P5,T5,X5)=0,\"\",(SUM(L5,P5,T5,X5)))","v":""},{"$f":"IF(AB5=\"\",\"\",(AB5-Z5*0.1-AA5*0.001+I5*0.00000001))","v":""}]
[2,"",null,null,null,null,null,"",0,null,null,null,"",null,null,null,"",null,null,null,"",null,null,null,"","","","",""]
[3,"",null,null,null,null,null,"",0,null,null,null,"",null,null,null,"",null,null,null,"",null,null,null,"","","","",""]
[4,"",null,null,null,null,null,"",0,null,null,null,"",null,null,null,"",null,null,null,"",null,null,null,"","","","",""]
[5,"",null,null,null,null,null,"",0,null,null,null,"",null,null,null,"",null,null,null,"",null,null,null,"","","","",""]
[6,"",null,null,null,null,null,"",0,null,null,null,"",null,null,null,"",null,null,null,"",null,null,null,"","","","",""]
[7,"",null,null,null,null,null,"",0,null,null,null,"",null,null,null,"",null,null,null,"",null,null,null,"","","","",""]
[8,"",null,null,null,null,null,"",0,null,null,null,"",null,null,null,"",null,null,null,"",null,null,null,"","","","",""]
[9,"",null,null,null,null,null,"",0,null,null,null,"",null,null,null,"",null,null,null,"",null,null,null,"","","","",""]
[10,"",null,null,null,null,null,"",0,null,null,null,"",null,null,null,"",null,null,null,"",null,null,null,"","","","",""]
[11,"",null,null,null,null,null,"",0,null,null,null,"",null,null,null,"",null,null,null,"",null,null,null,"","","","",""]
[12,"",null,null,null,null,null,"",0,null,null,null,"",null,null,null,"",null,null,null,"",null,null,null,"","","","",""]
[13,"",null,null,null,null,null,"",0,null,null,null,"",null,null,null,"",null,null,null,"",null,null,null,"","","","",""]
[14,"",null,null,null,null,null,"",0,null,null,null,"",null,null,null,"",null,null,null,"",null,null,null,"","","","",""]
[15,"",null,null,null,null,null,"",0,null,null,null,"",null,null,null,"",null,null,null,"",null,null,null,"","","","",""]
[16,"",null,null,null,null,null,"",0,null,null,null,"",null,null,null,"",null,null,null,"",null,null,null,"","","","",""]
[17,"",null,null,null,null,null,"",0,null,null,null,"",null,null,null,"",null,null,null,"",null,null,null,"","","","",""]
[18,"",null,null,null,null,null,"",0,null,null,null,"",null,null,null,"",null,null,null,"",null,null,null,"","","","",""]
[19,"",null,null,null,null,null,"",0,null,null,null,"",null,null,null,"",null,null,null,"",null,null,null,"","","","",""]
[20,"",null,null,null,null,null,"",0,null,null,null,"",null,null,null,"",null,null,null,"",null,null,null,"","","","",""]
[21,"",null,null,null,null,null,"",0,null,null,null,"",null,null,null,"",null,null,null,"",null,null,null,"","","","",""]
[22,"",null,null,null,null,null,"",0,null,null,null,"",null,null,null,"",null,null,null,"",null,null,null,"","","","",""]
[23,"",null,null,null,null,null,"",0,null,null,null,"",null,null,null,"",null,null,null,"",null,null,null,"","","","",""]
[24,"",null,null,null,null,null,"",0,null,null,null,"",null,null,null,"",null,null,null,"",null,null,null,"","","","",""]
[25,"",null,null,null,null,null,"",0,null,null,null,"",null,null,null,"",null,null,null,"",null,null,null,"","","","",""]
[26,"",null,null,null,null,null,"",0,null,null,null,"",null,null,null,"",null,null,null,"",null,null,null,"","","","",""]
[27,"",null,null,null,null,null,"",0,null,null,null,"",null,null,null,"",null,null,null,"",null,null,null,"","","","",""]
[28,"",null,null,null,null,null,"",0,null,null,null,"",null,null,null,"",null,null,null,"",null,null,null,"","","","",""]
[29,"",null,null,null,null,null,"",0,null,null,null,"",null,null,null,"",null,null,null,"",null,null,null,"","","","",""]
[30,"",null,null,null,null,null,"",0,null,null,null,"",null,null,null,"",null,null,null,"",null,null,null,"","","","",""]
[31,"",null,null,null,null,null,"",0,null,null,null,"",null,null,null,"",null,null,null,"",null,null,null,"","","","",""]
[32,"",null,null,null,null,null,"",0,null,null,null,"",null,null,null,"",null,null,null,"",null,null,null,"","","","",""]
[33,{"$f":"IF(AB37=\"\",\"\",RANK(AC37,$AC$5:$AC$104,1))","v":""},null,null,null,null,null,{"$f":"IF(G37=\"\",\"\",DATEDIF(G37,TODAY(),\"y\"))","v":""},{"$f":"G37","v":0},null,null,null,{"$f":"IF(L37=\"\",\"\",L37-(24-J37*5-K37))","v":""},null,null,null,{"$f":"IF(P37=\"\",\"\",P37-(24-N37*5-O37))","v":""},null,null,null,{"$f":"IF(T37=\"\",\"\",T37-(24-R37*5-S37))","v":""},null,null,null,{"$f":"IF(X37=\"\",\"\",X37-(24-V37*5-W37))","v":""},{"$f":"IF(F37=\"\",\"\",(SUM(J37,N37,R37,V37)))","v":""},"","",""]
[34,"",null,null,null,null,null,"",0,null,null,null,"",null,null,null,"",null,null,null,"",null,null,null,"","","","",""]
[35,"",null,null,null,null,null,"",0,null,null,null,"",null,null,null,"",null,null,null,"",null,null,null,"","","","",""]
[36,"",null,null,null,null,null,"",0,null,null,null,"",null,null,null,"",null,null,null,"",null,null,null,"","","","",""]
[37,"",null,null,null,null,null,"",0,null,null,null,"",null,null,null,"",null,null,null,"",null,null,null,"","","","",""]
[38,"",null,null,null,null,null,"",0,null,null,null,"",null,null,null,"",null,null,null,"",null,null,null,"","","","",""]
[39,"",null,null,null,null,null,"",0,null,null,null,"",null,null,null,"",null,null,null,"",null,null,null,"","","","",""]
[40,"",null,null,null,null,null,"",0,null,null,null,"",null,null,null,"",null,null,null,"",null,null,null,"","","","",""]
[41,"",null,null,null,null,null,"",0,null,null,null,"",null,null,null,"",null,null,null,"",null,null,null,"","","","",""]
[42,"",null,null,null,null,null,"",0,null,null,null,"",null,null,null,"",null,null,null,"",null,null,null,"","","","",""]
[43,"",null,null,null,null,null,"",0,null,null,null,"",null,null,null,"",null,null,null,"",null,null,null,"","","","",""]
[44,"",null,null,null,null,null,"",0,null,null,null,"",null,null,null,"",null,null,null,"",null,null,null,"","","","",""]
[45,"",null,null,null,null,null,"",0,null,null,null,"",null,null,null,"",null,null,null,"",null,null,null,"","","","",""]
[46,"",null,null,null,null,null,"",0,null,null,null,"",null,null,null,"",null,null,null,"",null,null,null,"","","","",""]
[47,"",null,null,null,null,null,"",0,null,null,null,"",null,null,null,"",null,null,null,"",null,null,null,"","","","",""]
[48,"",null,null,null,null,null,"",0,null,null,null,"",null,null,null,"",null,null,null,"",null,null,null,"","","","",""]
[49,"",null,null,null,null,null,"",0,null,null,null,"",null,null,null,"",null,null,null,"",null,null,null,"","","","",""]
[50,"",null,null,null,null,null,"",0,null,null,null,"",null,null,null,"",null,null,null,"",null,null,null,"","","","",""]
[51,"",null,null,null,null,null,"",0,null,null,null,"",null,null,null,"",null,null,null,"",null,null,null,"","","","",""]
[52,"",null,null,null,null,null,"",0,null,null,null,"",null,null,null,"",null,null,null,"",null,null,null,"","","","",""]
[53,"",null,null,null,null,null,"",0,null,null,null,"",null,null,null,"",null,null,null,"",null,null,null,"","","","",""]
[54,"",null,null,null,null,null,"",0,null,null,null,"",null,null,null,"",null,null,null,"",null,null,null,"","","","",""]
[55,"",null,null,null,null,null,"",0,null,null,null,"",null,null,null,"",null,null,null,"",null,null,null,"","","","",""]
[56,"",null,null,null,null,null,"",0,null,null,null,"",null,null,null,"",null,null,null,"",null,null,null,"","","","",""]
[57,"",null,null,null,null,null,"",0,null,null,null,"",null,null,null,"",null,null,null,"",null,null,null,"","","","",""]
[58,"",null,null,null,null,null,"",0,null,null,null,"",null,null,null,"",null,null,null,"",null,null,null,"","","","",""]
[59,"",null,null,null,null,null,"",0,null,null,null,"",null,null,null,"",null,null,null,"",null,null,null,"","","","",""]
[60,"",null,null,null,null,null,"",0,null,null,null,"",null,null,null,"",null,null,null,"",null,null,null,"","","","",""]
[61,"",null,null,null,null,null,"",0,null,null,null,"",null,null,null,"",null,null,null,"",null,null,null,"","","","",""]
[62,"",null,null,null,null,null,"",0,null,null,null,"",null,null,null,"",null,null,null,"",null,null,null,"","","","",""]
[63,"",null,null,null,null,null,"",0,null,null,null,"",null,null,null,"",null,null,null,"",null,null,null,"","","","",""]
[64,"",null,null,null,null,null,"",0,null,null,null,"",null,null,null,"",null,null,null,"",null,null,null,"","","","",""]
[65,{"$f":"IF(AB69=\"\",\"\",RANK(AC69,$AC$5:$AC$104,1))","v":""},null,null,null,null,null,{"$f":"IF(G69=\"\",\"\",DATEDIF(G69,TODAY(),\"y\"))","v":""},{"$f":"G69","v":0},null,null,null,{"$f":"IF(L69=\"\",\"\",L69-(24-J69*5-K69))","v":""},null,null,null,{"$f":"IF(P69=\"\",\"\",P69-(24-N69*5-O69))","v":""},null,null,null,{"$f":"IF(T69=\"\",\"\",T69-(24-R69*5-S69))","v":""},null,null,null,{"$f":"IF(X69=\"\",\"\",X69-(24-V69*5-W69))","v":""},{"$f":"IF(F69=\"\",\"\",(SUM(J69,N69,R69,V69)))","v":""},{"$f":"IF(F69=\"\",\"\",(SUM(K69,O69,S69,W69)))","v":""},{"$f":"IF(SUM(L69,P69,T69,X69)=0,\"\",(SUM(L69,P69,T69,X69)))","v":""},{"$f":"IF(AB69=\"\",\"\",(AB69-Z69*0.1-AA69*0.001+I69*0.00000001))","v":""}]
[66,"",null,null,null,null,null,"",0,null,null,null,"",null,null,null,"",null,null,null,"",null,null,null,"","","","",""]
[67,"",null,null,null,null,null,"",0,null,null,null,"",null,null,null,"",null,null,null,"",null,null,null,"","","","",""]
[68,"",null,null,null,null,null,"",0,null,null,null,"",null,null,null,"",null,null,null,"",null,null,null,"","","","",""]
[69,"",null,null,null,null,null,"",0,null,null,null,"",null,null,null,"",null,null,null,"",null,null,null,"","","","",""]
[70,"",null,null,null,null,null,"",0,null,null,null,"",null,null,null,"",null,null,null,"",null,null,null,"","","","",""]
[71,"",null,null,null,null,null,"",0,null,null,null,"",null,null,null,"",null,null,null,"",null,null,null,"","","","",""]
[72,"",null,null,null,null,null,"",0,null,null,null,"",null,null,null,"",null,null,null,"",null,null,null,"","","","",""]
[73,"",null,null,null,null,null,"",0,null,null,null,"",null,null,null,"",null,null,null,"",null,null,null,"","","","",""]
[74,"",null,null,null,null,null,"",0,null,null,null,"",null,null,null,"",null,null,null,"",null,null,null,"","","","",""]
[75,"",null,null,null,null,null,"",0,null,null,null,"",null,null,null,"",null,null,null,"",null,null,null,"","","","",""]
[76,"",null,null,null,null,null,"",0,null,null,null,"",null,null,null,"",null,null,null,"",null,null,null,"","","","",""]
[77,"",null,null,null,null,null,"",0,null,null,null,"",null,null,null,"",null,null,null,"",null,null,null,"","","","",""]
[78,"",null,null,null,null,null,"",0,null,null,null,"",null,null,null,"",null,null,null,"",null,null,null,"","","","",""]
[79,"",null,null,null,null,null,"",0,null,null,null,"",null,null,null,"",null,null,null,"",null,null,null,"","","","",""]
[80,"",null,null,null,null,null,"",0,null,null,null,"",null,null,null,"",null,null,null,"",null,null,null,"","","","",""]
[81,"",null,null,null,null,null,"",0,null,null,null,"",null,null,null,"",null,null,null,"",null,null,null,"","","","",""]
[82,"",null,null,null,null,null,"",0,null,null,null,"",null,null,null,"",null,null,null,"",null,null,null,"","","","",""]
[83,"",null,null,null,null,null,"",0,null,null,null,"",null,null,null,"",null,null,null,"",null,null,null,"","","","",""]
[84,"",null,null,null,null,null,"",0,null,null,null,"",null,null,null,"",null,null,null,"",null,null,null,"","","","",""]
[85,"",null,null,null,null,null,"",0,null,null,null,"",null,null,null,"",null,null,null,"",null,null,null,"","","","",""]
[86,"",null,null,null,null,null,"",0,null,null,null,"",null,null,null,"",null,null,null,"",null,null,null,"","","","",""]
[87,"",null,null,null,null,null,"",0,null,null,null,"",null,null,null,"",null,null,null,"",null,null,null,"","","","",""]
[88,"",null,null,null,null,null,"",0,null,null,null,"",null,null,null,"",null,null,null,"",null,null,null,"","","","",""]
[89,"",null,null,null,null,null,"",0,null,null,null,"",null,null,null,"",null,null,null,"",null,null,null,"","","","",""]
[90,"",null,null,null,null,null,"",0,null,null,null,"",null,null,null,"",null,null,null,"",null,null,null,"","","","",""]
[91,"",null,null,null,null,null,"",0,null,null,null,"",null,null,null,"",null,null,null,"",null,null,null,"","","","",""]
[92,"",null,null,null,null,null,"",0,null,null,null,"",null,null,null,"",null,null,null,"",null,null,null,"","","","",""]
[93,"",null,null,null,null,null,"",0,null,null,null,"",null,null,null,"",null,null,null,"",null,null,null,"","","","",""]
[94,"",null,null,null,null,null,"",0,null,null,null,"",null,null,null,"",null,null,null,"",null,null,null,"","","","",""]
[95,"",null,null,null,null,null,"",0,null,null,null,"",null,null,null,"",null,null,null,"",null,null,null,"","","","",""]
[96,"",null,null,null,null,null,"",0,null,null,null,"",null,null,null,"",null,null,null,"",null,null,null,"","","","",""]
[97,"",null,null,null,null,null,{"$f":"IF(G101=\"\",\"\",DATEDIF(G101,TODAY(),\"y\"))","v":""},0,null,null,null,{"$f":"IF(L101=\"\",\"\",L101-(24-J101*5-K101))","v":""},null,null,null,{"$f":"IF(P101=\"\",\"\",P101-(24-N101*5-O101))","v":""},null,null,null,{"$f":"IF(T101=\"\",\"\",T101-(24-R101*5-S101))","v":""},null,null,null,{"$f":"IF(X101=\"\",\"\",X101-(24-V101*5-W101))","v":""},"","","",""]
[98,"",null,null,null,null,null,"",0,null,null,null,"",null,null,null,"",null,null,null,"",null,null,null,"","","","",""]
[99,"",null,null,null,null,null,"",0,null,null,null,"",null,null,null,"",null,null,null,"",null,null,null,"","","","",""]
[100,"",null,null,null,null,null,"",0,null,null,null,"",null,null,null,"",null,null,null,"",null,null,null,"","","","",""]

{"sheet":"操作説明","index":3,"n_rows":0,"n_cols":0,"rows_kept":0,"cut":false,"hidden":false,"merged":[]}